Workbook

Sheet Total Oxylipins
A1: Total Oxylipin analysis: Gonadal White Adipose Tissue from ACSL4 floxed & Ad-KO males fed LFD or HFD for 12 weeks
A3: Sample IDs: | B3: 1 | C3: ACSL4floxed LFD | E3: 21 | F3: ACSL4floxed HFD
B4: 2 | C4: ACSL4floxed LFD | E4: 22 | F4: ACSL4floxed HFD
B5: 3 | C5: ACSL4floxed LFD | E5: 23 | F5: ACSL4floxed HFD
B6: 4 | C6: ACSL4floxed LFD | E6: 24 | F6: ACSL4floxed HFD
B7: 5 | C7: ACSL4floxed LFD | E7: 25 | F7: ACSL4floxed HFD
B8: 6 | C8: ACSL4floxed LFD | E8: 26 | F8: ACSL4floxed HFD
B9: 7 | C9: ACSL4floxed LFD | E9: 27 | F9: ACSL4floxed HFD
B10: 8 | C10: ACSL4floxed LFD | E10: 28 | F10: ACSL4floxed HFD
B11: 9 | C11: ACSL4floxed LFD | E11: 29 | F11: ACSL4floxed HFD
B12: 10 | C12: ACSL4floxed LFD | E12: 30 | F12: ACSL4floxed HFD
B13: 11 | C13: Ad-KO LFD | E13: 31 | F13: Ad-KO HFD
B14: 12 | C14: Ad-KO LFD | E14: 32 | F14: Ad-KO HFD
B15: 13 | C15: Ad-KO LFD | E15: 33 | F15: Ad-KO HFD
B16: 14 | C16: Ad-KO LFD | E16: 34 | F16: Ad-KO HFD
B17: 15 | C17: Ad-KO LFD | E17: 35 | F17: Ad-KO HFD
B18: 16 | C18: Ad-KO LFD | E18: 36 | F18: Ad-KO HFD
B19: 17 | C19: Ad-KO LFD | E19: 37 | F19: Ad-KO HFD
B20: 18 | C20: Ad-KO LFD | E20: 38 | F20: Ad-KO HFD
B21: 19 | C21: Ad-KO LFD | E21: 39 | F21: Ad-KO HFD
B22: 20 | C22: Ad-KO LFD | E22: 40 | F22: Ad-KO HFD
B24: Total Oxylipin (pmol/gram Adipose Tissue)
A25: Sample ID | B25: 9_12_13-TriHOME | C25: F2IsoPs | D25: PGF2a | E25: 11-HETE | F25: 15-HpETE | G25: 12-HpETE | H25: 12-HETE | I25: 12-HEPE | J25: 5-HETE | K25: 5-KETE | L25: 13-HpODE | M25: 9-HpODE | N25: 15-HETE | O25: 9-HETE | P25: 9-HEPE | Q25: 15-HEPE | R25: LipoxinA4 | S25: 13-KODE | T25: 13-HODE | U25: 9-HODE | V25: 9-KODE | W25: 8-HETE | X25: 5-HEPE | Y25: 20-HETE | Z25: 12(13)-Ep-9-KODE | AA25: 9-HOTE | AB25: 13-HOTE | AC25: 9_10-DiHODE | AD25: 12_13-DiHODE | AE25: 15_16-DiHODE | AF25: 9_10-DiHOME | AG25: 14_15-DiHETrE | AH25: 14_15-DiHETE | AI25: 11_12-DiHETrE | AJ25: 8_9-DiHETrE | AK25: 17_18-DiHETE | AL25: 19_20-DiHDoPA | AM25: 5_6-DiHETrE | AN25: 9_10-e-DiHO | AO25: 11(12)-EpETE | AP25: 9(10)-EpODE | AQ25: 9_10-EpO | AR25: 12(13)-EpODE | AS25: 14(15)-EpETrE | AT25: 15(16)-EpODE | AU25: 11(12)-EpETrE | AV25: 12(13)-EpOME | AW25: 8(9)-EpETrE | AX25: 17(18)-EpETE | AY25: 9(10)-EpOME | AZ25: 16(17)-EpDPE | BA25: 10-Nitrolinoleate | BB25: 10-Nitrooleate | BC25: 9-Nitrooleate
A26: 1 | B26: 280 | C26: 44.4 | E26: 241 | F26: 6.8 | G26: 6.66 | H26: 174 | I26: 21.6 | J26: 1530 | K26: 221 | L26: 4.65 | M26: 4.67 | N26: 528 | O26: 114 | P26: 11.4 | Q26: 50.7 | R26: 4.95 | S26: 11600 | T26: 27200 | U26: 18300 | V26: 9430 | W26: 172 | X26: 229 | Y26: 126 | Z26: 3610 | AA26: 642 | AB26: 729 | AC26: 137 | AD26: 29 | AE26: 320 | AF26: 1630 | AG26: 24.7 | AH26: 22.7 | AI26: 9.5 | AJ26: 27.9 | AK26: 122 | AL26: 66.2 | AM26: 154 | AN26: 275 | AO26: 108 | AP26: 3670 | AQ26: 32000 | AR26: 187 | AS26: 870 | AT26: 23214.0635 | AU26: 857 | AV26: 15100 | AW26: 940 | AX26: 87.1 | AY26: 45071.09434 | AZ26: 524 | BA26: 2.1 | BB26: 19 | BC26: 11
A27: 2 | B27: 278 | C27: 70.44 | D27: 3.46 | E27: 221 | F27: 4.28 | G27: 4.48 | H27: 466 | I27: 22.5 | J27: 2700 | K27: 87.4 | L27: 3.62 | M27: 3.46 | N27: 459 | O27: 190 | P27: 17.3 | Q27: 63.5 | R27: 3.04 | S27: 6700 | T27: 35000 | U27: 17400 | V27: 8520 | W27: 181 | X27: 554 | Y27: 150 | Z27: 3260 | AA27: 985 | AB27: 1840 | AC27: 163 | AD27: 39.3 | AE27: 279 | AF27: 2180 | AG27: 48.6 | AH27: 46.2 | AI27: 12.8 | AJ27: 39.8 | AK27: 228 | AL27: 106 | AM27: 132 | AN27: 265 | AO27: 65.9 | AP27: 1480 | AQ27: 17300 | AR27: 121 | AS27: 532 | AT27: 7690 | AU27: 302 | AV27: 8780 | AW27: 501 | AX27: 62.3 | AY27: 25500 | AZ27: 257 | BA27: 2.55 | BB27: 13.3 | BC27: 8.96
A28: 3 | B28: 243 | C28: 73 | E28: 143 | F28: 2.85 | G28: 3.05 | H28: 84.5 | I28: 6.3 | J28: 2130 | K28: 201 | L28: 4.68 | M28: 5.07 | N28: 218 | O28: 78.5 | P28: 12.6 | Q28: 20 | R28: 3.82 | S28: 9620 | T28: 19600 | U28: 15400 | V28: 15800 | W28: 122 | X28: 361 | Y28: 213 | Z28: 4590 | AA28: 760 | AB28: 685 | AC28: 141 | AD28: 33.5 | AE28: 247 | AF28: 1360 | AG28: 23.4 | AH28: 39.5 | AI28: 6.99 | AJ28: 21.4 | AK28: 170 | AL28: 64.3 | AM28: 87.9 | AN28: 208 | AO28: 27.7 | AP28: 414 | AQ28: 23300 | AR28: 49.8 | AS28: 251 | AT28: 1860 | AU28: 232 | AV28: 7040 | AW28: 212 | AX28: 6.62 | AY28: 15300 | AZ28: 178 | BA28: 5.44 | BC28: 25.7
A29: 4 | B29: 217 | C29: 46.07 | D29: 2.73 | E29: 232 | F29: 1.53 | G29: 1.29 | H29: 780 | I29: 32.6 | J29: 1640 | K29: 52.8 | L29: 1.83 | M29: 1.59 | N29: 510 | O29: 123 | P29: 6.84 | Q29: 59.9 | R29: 2.81 | S29: 5630 | T29: 26500 | U29: 18300 | V29: 4420 | W29: 157 | X29: 191 | Y29: 109 | Z29: 1290 | AA29: 567 | AB29: 1430 | AC29: 164 | AD29: 55.1 | AE29: 195 | AF29: 1320 | AG29: 20.5 | AH29: 36.8 | AI29: 10.1 | AJ29: 29.9 | AK29: 97.1 | AL29: 50.8 | AM29: 114 | AN29: 331 | AO29: 34.7 | AP29: 1970 | AQ29: 25400 | AR29: 173 | AS29: 215 | AT29: 27400 | AU29: 176 | AV29: 5380 | AW29: 192 | AX29: 38.5 | AY29: 12200 | AZ29: 217 | BA29: 6.98 | BB29: 36.4 | BC29: 29.3
A30: 5 | B30: 139 | C30: 42.5 | D30: 1.4 | E30: 237 | F30: 1.21 | G30: 1.34 | H30: 921 | I30: 15.2 | J30: 2320 | K30: 84.2 | L30: 2.17 | M30: 2.25 | N30: 402 | O30: 118 | P30: 7.35 | Q30: 39.5 | R30: 1.69 | S30: 4130 | T30: 19700 | U30: 15700 | V30: 5740 | W30: 230 | X30: 326 | Y30: 603 | Z30: 2650 | AA30: 1150 | AB30: 2560 | AC30: 95.5 | AD30: 28.3 | AE30: 143 | AF30: 1020 | AG30: 26.8 | AH30: 28.4 | AI30: 13.8 | AJ30: 43.3 | AK30: 134 | AL30: 86.2 | AM30: 86.4 | AN30: 142 | AO30: 20.2 | AP30: 325 | AQ30: 8230 | AR30: 35.9 | AS30: 311 | AT30: 1330 | AU30: 322 | AV30: 4050 | AW30: 176 | AX30: 7.82 | AY30: 12100 | AZ30: 280 | BA30: 5.4 | BB30: 9.12
A31: 6 | B31: 223 | C31: 252.42 | D31: 9.58 | E31: 337 | F31: 1.48 | G31: 1.68 | H31: 330 | I31: 26 | J31: 3970 | K31: 76.1 | L31: 2.32 | M31: 2.7 | N31: 636 | O31: 183 | P31: 32.4 | Q31: 77.8 | R31: 2.77 | S31: 6080 | T31: 37200 | U31: 33600 | V31: 7760 | W31: 256 | X31: 886 | Y31: 200 | Z31: 2400 | AA31: 2420 | AB31: 2170 | AC31: 47.4 | AD31: 11.7 | AE31: 94.4 | AF31: 775 | AG31: 25.1 | AH31: 31.3 | AI31: 9.3 | AJ31: 21.9 | AK31: 116 | AL31: 55.8 | AM31: 84.4 | AN31: 215 | AO31: 38.8 | AP31: 564 | AQ31: 10100 | AR31: 67.3 | AS31: 380 | AT31: 2860 | AU31: 306 | AV31: 6020 | AW31: 238 | AX31: 36.6 | AY31: 16800 | AZ31: 223 | BA31: 5.37 | BB31: 12.3 | BC31: 5.78
A32: 7 | B32: 171 | C32: 28.7 | E32: 174 | F32: 1.57 | G32: 1.46 | H32: 686 | I32: 30.3 | J32: 1920 | K32: 114 | L32: 1.99 | M32: 2.19 | N32: 386 | O32: 119 | P32: 12.5 | Q32: 61.1 | R32: 10.7 | S32: 4020 | T32: 25000 | U32: 14700 | V32: 4930 | W32: 159 | X32: 422 | Y32: 202 | Z32: 1320 | AA32: 830 | AB32: 1860 | AC32: 103 | AD32: 32.8 | AE32: 206 | AF32: 1330 | AG32: 36.7 | AH32: 48.5 | AI32: 10.7 | AJ32: 31.6 | AK32: 166 | AL32: 101 | AM32: 105 | AN32: 288 | AO32: 33.4 | AP32: 597 | AQ32: 15300 | AR32: 74.8 | AS32: 514 | AT32: 5610 | AU32: 426 | AV32: 7100 | AW32: 338 | AX32: 35.1 | AY32: 18897.62074 | AZ32: 416 | BA32: 20.9 | BB32: 32.6 | BC32: 19.3
A33: 8 | B33: 132 | C33: 37.99 | D33: 0.71 | E33: 197 | F33: 0.79 | G33: 0.76 | H33: 472 | I33: 45.5 | J33: 2070 | K33: 52.8 | L33: 0.73 | M33: 0.86 | N33: 467 | O33: 137 | P33: 15.7 | Q33: 60.3 | R33: 1.93 | S33: 1460 | T33: 30900 | U33: 15100 | V33: 2150 | W33: 169 | X33: 352 | Y33: 147 | Z33: 709 | AA33: 628 | AB33: 953 | AC33: 163 | AD33: 48.4 | AE33: 301 | AF33: 1760 | AG33: 48.9 | AH33: 49.8 | AI33: 13.9 | AJ33: 39 | AK33: 244 | AL33: 103 | AM33: 147 | AN33: 281 | AO33: 15.9 | AP33: 663 | AQ33: 10300 | AR33: 73.2 | AS33: 254 | AT33: 13500 | AU33: 352 | AV33: 4960 | AW33: 278 | AX33: 49.6 | AY33: 14000 | AZ33: 301 | BA33: 10.6 | BB33: 22.1 | BC33: 4.95
A34: 9 | B34: 187 | C34: 45.03 | D34: 2.67 | E34: 215 | F34: 0.89 | G34: 0.88 | H34: 340 | I34: 31.4 | J34: 2050 | K34: 69.1 | L34: 1.65 | M34: 1.8 | N34: 413 | O34: 167 | P34: 24.5 | Q34: 43.3 | R34: 3.64 | S34: 3670 | T34: 32100 | U34: 18800 | V34: 4830 | W34: 179 | X34: 556 | Y34: 215 | Z34: 1560 | AA34: 1180 | AB34: 1370 | AC34: 153 | AD34: 41.3 | AE34: 270 | AF34: 1930 | AG34: 31.5 | AH34: 39.6 | AI34: 9.34 | AJ34: 26.9 | AK34: 177 | AL34: 73.6 | AM34: 111 | AN34: 348 | AO34: 15.7 | AP34: 404 | AQ34: 12100 | AR34: 41.9 | AS34: 223 | AT34: 3600 | AU34: 314 | AV34: 4350 | AW34: 221 | AX34: 26.1 | AY34: 12900 | AZ34: 176 | BA34: 10.5 | BB34: 16.3 | BC34: 5.44
A35: 10 | B35: 217 | C35: 190.57 | D35: 8.43 | E35: 362 | F35: 1.46 | G35: 1.5 | H35: 817 | I35: 78.7 | J35: 4360 | K35: 76.1 | L35: 1.21 | M35: 1.39 | N35: 977 | O35: 309 | P35: 51.4 | Q35: 172 | R35: 3.16 | S35: 2620 | T35: 31910.83345 | U35: 23100 | V35: 3970 | W35: 394 | X35: 998 | Y35: 351 | Z35: 1220 | AA35: 1750 | AB35: 2420 | AC35: 74.7 | AD35: 22.2 | AE35: 151 | AF35: 936 | AG35: 50.1 | AH35: 62.3 | AI35: 13 | AJ35: 40.2 | AK35: 311 | AL35: 105 | AM35: 150 | AN35: 255 | AO35: 31.9 | AP35: 509 | AQ35: 12400 | AR35: 60.2 | AS35: 414 | AT35: 6990 | AU35: 436 | AV35: 4720 | AW35: 372 | AX35: 110 | AY35: 11900 | AZ35: 247 | BA35: 6.54 | BB35: 13.7 | BC35: 3.99
A36: Average | B36: 208.7 | C36: 83.112 | D36: 4.14 | E36: 235.9 | F36: 2.286 | G36: 2.31 | H36: 507.05 | I36: 31.01 | J36: 2469 | K36: 103.45 | L36: 2.485 | M36: 2.598 | N36: 499.6 | O36: 153.85 | P36: 19.199 | Q36: 64.81 | R36: 3.851 | S36: 5553 | T36: 28511.08335 | U36: 19040 | V36: 6755 | W36: 201.9 | X36: 487.5 | Y36: 231.6 | Z36: 2260.9 | AA36: 1091.2 | AB36: 1601.7 | AC36: 124.16 | AD36: 34.16 | AE36: 220.64 | AF36: 1424.1 | AG36: 33.63 | AH36: 40.51 | AI36: 10.943 | AJ36: 32.19 | AK36: 176.51 | AL36: 81.19 | AM36: 117.17 | AN36: 260.8 | AO36: 39.22 | AP36: 1059.6 | AQ36: 16643 | AR36: 88.41 | AS36: 396.4 | AT36: 9405.40635 | AU36: 372.3 | AV36: 6750 | AW36: 346.8 | AX36: 45.974 | AY36: 18466.87151 | AZ36: 281.9 | BA36: 7.638 | BB36: 19.42444444 | BC36: 12.71333333
A37: SD | B37: 51.68075077 | C37: 75.60292128 | D37: 3.461252182 | E37: 67.32912528 | F37: 1.898275241 | G37: 1.896874622 | H37: 283.937635 | I37: 19.81606812 | J37: 955.9457214 | K37: 59.51683702 | L37: 1.374241205 | M37: 1.397527976 | N37: 199.8250346 | O37: 64.46534383 | P37: 13.73362496 | Q37: 40.86382399 | R37: 2.580045004 | S37: 3126.620646 | T37: 5989.644364 | U37: 5687.061338 | V37: 3881.206141 | W37: 77.31386249 | X37: 268.3274326 | Y37: 147.0783616 | Z37: 1257.192326 | AA37: 586.078076 | AB37: 678.2613475 | AC37: 41.48901327 | AD37: 12.60248653 | AE37: 74.94684338 | AF37: 450.8279913 | AG37: 11.63663277 | AH37: 11.65050786 | AI37: 2.317403 | AJ37: 7.931435347 | AK37: 66.82698141 | AL37: 21.63189261 | AM37: 27.11629481 | AN37: 60.4902196 | AO37: 28.17022857 | AP37: 1060.716236 | AQ37: 7828.284969 | AR37: 53.7554018 | AS37: 202.4237579 | AT37: 9147.692229 | AU37: 187.3120095 | AV37: 3280.155823 | AW37: 230.9592557 | AX37: 32.8832616 | AY37: 10242.17957 | AZ37: 109.7942014 | BA37: 5.436753116 | BB37: 9.394699451 | BC37: 9.627542521
A39: 11 | B39: 256 | C39: 104.2 | D39: 12.8 | E39: 401 | F39: 7.55 | G39: 8.12 | H39: 746 | I39: 52.2 | J39: 2760 | K39: 177 | L39: 4.41 | M39: 4.17 | N39: 508 | O39: 171 | P39: 11.3 | Q39: 79 | R39: 2.8 | S39: 7640 | T39: 29700 | U39: 19000 | V39: 10100 | W39: 248 | X39: 395 | Y39: 185 | Z39: 3810 | AA39: 741 | AB39: 1130 | AC39: 105 | AD39: 28.3 | AE39: 195 | AF39: 1370 | AG39: 37.4 | AH39: 37.9 | AI39: 14.3 | AJ39: 41.7 | AK39: 185 | AL39: 80.2 | AM39: 127 | AN39: 255 | AO39: 148 | AP39: 2430 | AQ39: 31400 | AR39: 150 | AS39: 743 | AT39: 10600 | AU39: 706 | AV39: 12700 | AW39: 790 | AX39: 67.7 | AY39: 37219.05226 | AZ39: 555 | BA39: 4.41 | BB39: 32.8 | BC39: 19.7
A40: 12 | B40: 238 | C40: 204.36 | D40: 7.64 | E40: 243 | F40: 2.4 | G40: 2.4 | H40: 406 | I40: 30.1 | J40: 2880 | K40: 51.6 | L40: 2.7 | M40: 2.22 | N40: 532 | O40: 113 | P40: 13.4 | Q40: 39.7 | R40: 1.7 | S40: 7100 | T40: 34000 | U40: 26400 | V40: 5130 | W40: 188 | X40: 395 | Y40: 198 | Z40: 3060 | AA40: 1110 | AB40: 1020 | AC40: 199 | AD40: 43.7 | AE40: 331 | AF40: 1980 | AG40: 30.4 | AH40: 40.2 | AI40: 13.1 | AJ40: 38.6 | AK40: 207 | AL40: 80.9 | AM40: 118 | AN40: 398 | AO40: 35.8 | AP40: 2320 | AQ40: 13000 | AR40: 83.3 | AS40: 207 | AT40: 19700 | AU40: 136 | AV40: 5070 | AW40: 159 | AX40: 46.4 | AY40: 10200 | AZ40: 143 | BA40: 2.61 | BB40: 21.4 | BC40: 9.31
A41: 13 | B41: 257 | C41: 56.52 | D41: 1.18 | E41: 166 | F41: 2.44 | G41: 2.45 | H41: 295 | I41: 15.9 | J41: 2100 | K41: 69.4 | L41: 2.68 | M41: 2.89 | N41: 417 | O41: 98.6 | P41: 10.8 | Q41: 60.8 | R41: 2.22 | S41: 6880 | T41: 26200 | U41: 17800 | V41: 6560 | W41: 124 | X41: 261 | Y41: 130 | Z41: 2540 | AA41: 638 | AB41: 1200 | AC41: 113 | AD41: 26.9 | AE41: 163 | AF41: 1340 | AG41: 25.9 | AH41: 32.1 | AI41: 10.5 | AJ41: 33.2 | AK41: 133 | AL41: 63.3 | AM41: 117 | AN41: 250 | AO41: 42.4 | AP41: 2060 | AQ41: 25500 | AR41: 119 | AS41: 307 | AT41: 23100 | AU41: 223 | AV41: 8450 | AW41: 241 | AX41: 54.8 | AY41: 25600 | AZ41: 334 | BA41: 5.57 | BB41: 23.8 | BC41: 10.5
A42: 14 | B42: 211 | C42: 136.54 | D42: 3.46 | E42: 211 | F42: 3.68 | G42: 3.4 | H42: 316 | I42: 29.9 | J42: 2120 | K42: 112 | L42: 2.99 | M42: 2.51 | N42: 451 | O42: 85.5 | P42: 9.8 | Q42: 53.3 | R42: 1.47 | S42: 8230 | T42: 32100 | U42: 25400 | V42: 6330 | W42: 160 | X42: 272 | Y42: 97.7 | Z42: 2210 | AA42: 957 | AB42: 1010 | AC42: 96.5 | AD42: 24.5 | AE42: 148 | AF42: 928 | AG42: 18.7 | AH42: 22.6 | AI42: 8.3 | AJ42: 25.2 | AK42: 93.2 | AL42: 46.3 | AM42: 119 | AN42: 272 | AO42: 46.1 | AP42: 2200 | AQ42: 24500 | AR42: 124 | AS42: 276 | AT42: 27500 | AU42: 283 | AV42: 6870 | AW42: 227 | AX42: 49 | AY42: 21000 | AZ42: 227 | BA42: 4.32 | BB42: 24.8 | BC42: 9.07
A43: 15 | B43: 283 | C43: 154.07 | D43: 3.93 | E43: 258 | F43: 3.06 | G43: 2.76 | H43: 495 | I43: 41.4 | J43: 2620 | K43: 120 | L43: 2.76 | M43: 2.34 | N43: 494 | O43: 101 | P43: 11.7 | Q43: 53.4 | R43: 2.08 | S43: 4730 | T43: 28900 | U43: 19500 | V43: 5760 | W43: 155 | X43: 337 | Y43: 172 | Z43: 2030 | AA43: 773 | AB43: 915 | AC43: 170 | AD43: 41.5 | AE43: 229 | AF43: 1590 | AG43: 28 | AH43: 31.8 | AI43: 13.1 | AJ43: 36.6 | AK43: 146 | AL43: 68.1 | AM43: 127 | AN43: 350 | AO43: 40.4 | AP43: 1850 | AQ43: 23800 | AR43: 125 | AS43: 315 | AT43: 24000 | AU43: 302 | AV43: 6240 | AW43: 192 | AX43: 50.3 | AY43: 19500 | AZ43: 219 | BA43: 5.11 | BB43: 26.3 | BC43: 15
A44: 16 | B44: 158 | C44: 34.73 | D44: 2.67 | E44: 163 | F44: 2.22 | G44: 1.84 | H44: 518 | I44: 22 | J44: 1220 | K44: 96.9 | L44: 2.2 | M44: 1.84 | N44: 312 | O44: 70.9 | P44: 4.88 | Q44: 49.9 | R44: 0.111 | S44: 5360 | T44: 19700 | U44: 11900 | V44: 4770 | W44: 97.5 | X44: 162 | Y44: 149 | Z44: 1530 | AA44: 344 | AB44: 845 | AC44: 129 | AD44: 42.6 | AE44: 245 | AF44: 1270 | AG44: 23.9 | AH44: 37.9 | AI44: 10.8 | AJ44: 30.2 | AK44: 173 | AL44: 76.4 | AM44: 113 | AN44: 232 | AO44: 37.7 | AP44: 3180 | AQ44: 22200 | AR44: 110 | AS44: 192 | AT44: 27600 | AU44: 269 | AV44: 5080 | AW44: 200 | AX44: 31.1 | AY44: 13100 | AZ44: 248 | BA44: 2.58 | BB44: 19.4 | BC44: 8.04
A45: 17 | B45: 148 | C45: 106.02 | D45: 9.98 | E45: 423 | F45: 1.93 | G45: 1.62 | H45: 1570 | I45: 82.9 | J45: 2080 | K45: 86.7 | L45: 1.86 | M45: 1.62 | N45: 719 | O45: 123 | P45: 8.2 | Q45: 74.9 | R45: 1.76 | S45: 4320 | T45: 24700 | U45: 19900 | V45: 4450 | W45: 238 | X45: 245 | Y45: 51.1 | Z45: 1340 | AA45: 741 | AB45: 1250 | AC45: 197 | AD45: 48.6 | AE45: 275 | AF45: 1570 | AG45: 31.9 | AH45: 40.1 | AI45: 18.2 | AJ45: 44.9 | AK45: 180 | AL45: 70 | AM45: 139 | AN45: 298 | AO45: 43.8 | AP45: 2160 | AQ45: 21200 | AR45: 206 | AS45: 280 | AT45: 13280.63412 | AU45: 370 | AV45: 5960 | AW45: 263 | AX45: 40.8 | AY45: 15167.90075 | AZ45: 206 | BA45: 4.63 | BB45: 22.6 | BC45: 7.07
A46: 18 | B46: 232 | C46: 324.4 | D46: 13.6 | E46: 572 | F46: 1.5 | G46: 1.71 | H46: 1050 | I46: 65.3 | J46: 4510 | K46: 105 | L46: 2.07 | M46: 2.36 | N46: 888 | O46: 392 | P46: 40.4 | Q46: 115 | R46: 3.37 | S46: 3980 | T46: 54298.74738 | U46: 43000 | V46: 7120 | W46: 421 | X46: 821 | Y46: 289 | Z46: 1790 | AA46: 2960 | AB46: 3110 | AC46: 75.1 | AD46: 19.2 | AE46: 101 | AF46: 1130 | AG46: 28.7 | AH46: 31.3 | AI46: 11.8 | AJ46: 30 | AK46: 108 | AL46: 67.5 | AM46: 148 | AN46: 336 | AO46: 39.7 | AP46: 746 | AQ46: 18800 | AR46: 36.1 | AS46: 324 | AT46: 4190 | AU46: 470 | AV46: 6170 | AW46: 388 | AX46: 47.5 | AY46: 18900 | AZ46: 267 | BA46: 6.54 | BB46: 18.7 | BC46: 6.05
A47: 19 | B47: 165 | C47: 44.642 | D47: 0.558 | E47: 140 | F47: 1.55 | G47: 1.85 | H47: 246 | I47: 31.2 | J47: 1690 | K47: 115 | L47: 1.94 | M47: 2.32 | N47: 298 | O47: 120 | P47: 13.8 | Q47: 46.7 | R47: 3.16 | S47: 4490 | T47: 30000 | U47: 13500 | V47: 5810 | W47: 116 | X47: 315 | Y47: 79 | Z47: 2400 | AA47: 636 | AB47: 772 | AC47: 155 | AD47: 41.2 | AE47: 307 | AF47: 1720 | AG47: 29.4 | AH47: 44.2 | AI47: 7.72 | AJ47: 26.1 | AK47: 240 | AL47: 84.7 | AM47: 153 | AN47: 189 | AO47: 21.9 | AP47: 455 | AQ47: 13300 | AR47: 46 | AS47: 285 | AT47: 3650 | AU47: 289 | AV47: 6030 | AW47: 255 | AX47: 18 | AY47: 18100 | AZ47: 264 | BA47: 7.78 | BB47: 13.1 | BC47: 2.75
A48: 20 | B48: 256 | C48: 218.15 | D48: 5.85 | E48: 310 | F48: 0.83 | G48: 0.74 | H48: 484 | I48: 42.7 | J48: 3020 | K48: 35.6 | L48: 1.51 | M48: 1.76 | N48: 584 | O48: 151 | P48: 30.9 | Q48: 70.2 | R48: 2.67 | S48: 3390 | T48: 54800 | U48: 37000 | V48: 4630 | W48: 201 | X48: 597 | Y48: 235 | Z48: 1170 | AA48: 2530 | AB48: 2210 | AC48: 95.3 | AD48: 21.9 | AE48: 191 | AF48: 1270 | AG48: 26.7 | AH48: 31 | AI48: 9.69 | AJ48: 22.6 | AK48: 171 | AL48: 66.2 | AM48: 105 | AN48: 266 | AO48: 16.6 | AP48: 467 | AQ48: 6670 | AR48: 53.6 | AS48: 266 | AT48: 3580 | AU48: 200 | AV48: 4910 | AW48: 173 | AX48: 43.2 | AY48: 10600 | AZ48: 201 | BA48: 9.44 | BB48: 16.2 | BC48: 14.6
A49: Average | B49: 220.4 | C49: 138.3632 | D49: 6.1668 | E49: 288.7 | F49: 2.716 | G49: 2.689 | H49: 612.6 | I49: 41.36 | J49: 2500 | K49: 96.92 | L49: 2.512 | M49: 2.403 | N49: 520.3 | O49: 142.6 | P49: 15.518 | Q49: 64.29 | R49: 2.1341 | S49: 5612 | T49: 33439.87474 | U49: 23340 | V49: 6066 | W49: 194.85 | X49: 380 | Y49: 158.58 | Z49: 2188 | AA49: 1143 | AB49: 1346.2 | AC49: 133.49 | AD49: 33.84 | AE49: 218.5 | AF49: 1416.8 | AG49: 28.1 | AH49: 34.91 | AI49: 11.751 | AJ49: 32.91 | AK49: 163.62 | AL49: 70.36 | AM49: 126.6 | AN49: 284.6 | AO49: 47.24 | AP49: 1786.8 | AQ49: 20037 | AR49: 105.3 | AS49: 319.5 | AT49: 15720.06341 | AU49: 324.8 | AV49: 6748 | AW49: 288.8 | AX49: 44.88 | AY49: 18938.6953 | AZ49: 266.4 | BA49: 5.299 | BB49: 21.91 | BC49: 10.209
A50: SD | B50: 47.76144424 | C50: 90.68642513 | D50: 4.677932136 | E50: 138.8028578 | F50: 1.881200562 | G50: 2.040465361 | H50: 412.4407567 | I50: 20.55443721 | J50: 901.3693287 | K50: 39.77843637 | L50: 0.8168339965 | M50: 0.7272940717 | N50: 178.8860904 | O50: 92.4460323 | P50: 11.14151974 | Q50: 21.8786781 | R50: 0.9535426868 | S50: 1704.861024 | T50: 11820.28267 | U50: 9947.216249 | V50: 1669.538858 | W50: 93.94562553 | X50: 194.2701441 | Y50: 72.86314112 | Z50: 811.8812174 | AA50: 873.7865236 | AB50: 739.4284279 | AC50: 44.23240265 | AD50: 10.68562898 | AE50: 72.76942276 | AF50: 304.5874441 | AG50: 4.956253065 | AH50: 6.293991844 | AI50: 3.102051114 | AJ50: 7.416415726 | AK50: 44.57726875 | AL50: 11.10297257 | AM50: 15.5791884 | AN50: 61.86221248 | AO50: 36.65997515 | AP50: 920.5365344 | AQ50: 7258.598043 | AR50: 52.22617479 | AS50: 154.90732 | AT50: 9871.03679 | AU50: 162.1678143 | AV50: 2334.351207 | AW50: 187.5181769 | AX50: 13.36070524 | AY50: 8014.024286 | AZ50: 113.1156733 | BA50: 2.154388029 | BB50: 5.551266122 | BC50: 4.966506597
A52: 21 | B52: 811 | C52: 71.73 | D52: 2.77 | E52: 114 | F52: 3.94 | G52: 3.75 | H52: 304 | I52: 16.7 | J52: 2430 | K52: 107 | L52: 3.54 | M52: 3.36 | N52: 236 | O52: 96.1 | P52: 6.91 | Q52: 21.6 | R52: 1.21 | S52: 6060 | T52: 12800 | U52: 10000 | V52: 9670 | W52: 108 | X52: 260 | Y52: 107 | Z52: 1330 | AA52: 275 | AB52: 290 | AC52: 34.8 | AD52: 13.5 | AE52: 116 | AF52: 536 | AG52: 11.7 | AH52: 22.6 | AI52: 4.2 | AJ52: 11.7 | AK52: 144 | AL52: 75.1 | AM52: 120 | AN52: 386 | AO52: 8.64 | AP52: 1590 | AQ52: 9810 | AR52: 196 | AS52: 226 | AT52: 7200 | AU52: 180 | AV52: 5080 | AW52: 107 | AX52: 14.6 | AY52: 8530 | AZ52: 95.4 | BA52: 6.87 | BB52: 26.2 | BC52: 7.79
A53: 22 | B53: 526 | C53: 96.94 | D53: 6.06 | E53: 162 | F53: 5.95 | G53: 6.46 | H53: 296 | I53: 23.2 | J53: 2440 | K53: 135 | L53: 3.96 | M53: 3.96 | N53: 316 | O53: 97.7 | P53: 7.39 | Q53: 28.1 | R53: 2.56 | S53: 7520 | T53: 16600 | U53: 12500 | V53: 6270 | W53: 106 | X53: 339 | Y53: 160 | Z53: 2830 | AA53: 336 | AB53: 302 | AC53: 25.3 | AD53: 9.79 | AE53: 68.2 | AF53: 534 | AG53: 16.4 | AH53: 18.7 | AI53: 6.02 | AJ53: 21.5 | AK53: 106 | AL53: 66.9 | AM53: 111 | AN53: 334 | AO53: 92.4 | AP53: 1590 | AQ53: 26500 | AR53: 119 | AS53: 552 | AT53: 7140 | AU53: 452 | AV53: 8370 | AW53: 333 | AX53: 36.4 | AY53: 20400 | AZ53: 251 | BA53: 6.38 | BB53: 33 | BC53: 24.4
A54: 23 | B54: 298 | C54: 349.5 | D54: 12.5 | E54: 304 | F54: 9.03 | G54: 8.24 | H54: 254 | I54: 18.9 | J54: 4350 | K54: 157 | L54: 6.09 | M54: 5.22 | N54: 644 | O54: 160 | P54: 16.4 | Q54: 51.9 | R54: 4.27 | S54: 12800 | T54: 32900 | U54: 29800 | V54: 8980 | W54: 252 | X54: 477 | Y54: 223 | Z54: 3230 | AA54: 1030 | AB54: 756 | AC54: 19.5 | AD54: 9 | AE54: 61.3 | AF54: 488 | AG54: 12.4 | AH54: 18.9 | AI54: 6.89 | AJ54: 28 | AK54: 74.8 | AL54: 56.8 | AM54: 160 | AN54: 310 | AO54: 131 | AP54: 3260 | AQ54: 27800 | AR54: 193 | AS54: 638 | AT54: 20200 | AU54: 449 | AV54: 11100 | AW54: 534 | AX54: 67.4 | AY54: 28700 | AZ54: 242 | BA54: 2.04 | BB54: 19.1 | BC54: 3.63
A55: 24 | B55: 537 | C55: 56.69 | D55: 2.91 | E55: 173 | F55: 6.12 | G55: 6.34 | H55: 140 | I55: 11.1 | J55: 2030 | K55: 158 | L55: 3.86 | M55: 3.58 | N55: 405 | O55: 118 | P55: 6.77 | Q55: 25.7 | R55: 2.98 | S55: 5830 | T55: 16400 | U55: 10900 | V55: 6970 | W55: 135 | X55: 220 | Y55: 116 | Z55: 2650 | AA55: 260 | AB55: 267 | AC55: 15.7 | AD55: 5 | AE55: 50.5 | AF55: 336 | AG55: 7.94 | AH55: 13 | AI55: 3.83 | AJ55: 12.4 | AK55: 46.5 | AL55: 45.3 | AM55: 114 | AN55: 373 | AO55: 100 | AP55: 2520 | AQ55: 27000 | AR55: 121 | AS55: 439 | AT55: 8320 | AU55: 425 | AV55: 7360 | AW55: 325 | AX55: 36.1 | AY55: 14500 | AZ55: 229 | BA55: 3.43 | BB55: 24.4 | BC55: 12
A56: 25 | B56: 391 | C56: 432.3 | D56: 22.7 | E56: 412 | F56: 2.38 | G56: 2.57 | H56: 4880 | I56: 157 | J56: 6270 | K56: 98.6 | L56: 1.93 | M56: 2.16 | N56: 940 | O56: 251 | P56: 35.1 | Q56: 79.4 | R56: 3.61 | S56: 3170 | T56: 40200 | U56: 28300 | V56: 3980 | W56: 319 | X56: 967 | Y56: 287 | Z56: 1310 | AA56: 1350 | AB56: 1060 | AC56: 20.7 | AD56: 8.52 | AE56: 83.7 | AF56: 524 | AG56: 21.2 | AH56: 26.3 | AI56: 6.4 | AJ56: 20.9 | AK56: 143 | AL56: 109 | AM56: 139 | AN56: 420 | AO56: 57.3 | AP56: 728 | AQ56: 17600 | AR56: 33.6 | AS56: 358 | AT56: 4470 | AU56: 365 | AV56: 4040 | AW56: 555 | AX56: 46.7 | AY56: 7480 | AZ56: 233 | BA56: 5.45 | BB56: 12.9 | BC56: 3.89
A57: 26 | B57: 259 | C57: 157.01 | D57: 7.99 | E57: 180 | F57: 2.82 | G57: 2.59 | H57: 1090 | I57: 24.8 | J57: 3110 | K57: 156 | L57: 2.33 | M57: 2.56 | N57: 576 | O57: 132 | P57: 13.3 | Q57: 52 | R57: 4.47 | S57: 7580 | T57: 24100 | U57: 17900 | V57: 6770 | W57: 152 | X57: 386 | Y57: 253 | Z57: 1030 | AA57: 565 | AB57: 919 | AC57: 44.9 | AD57: 16.4 | AE57: 181 | AF57: 730 | AG57: 26.1 | AH57: 55.5 | AI57: 8.3 | AJ57: 23.5 | AK57: 371 | AL57: 151 | AM57: 200 | AN57: 340 | AO57: 22.2 | AP57: 1350 | AQ57: 11200 | AR57: 121 | AS57: 317 | AT57: 9990 | AU57: 295 | AV57: 5030 | AW57: 138 | AX57: 36.8 | AY57: 12200 | AZ57: 241 | BA57: 11.8 | BB57: 25.9 | BC57: 10
A58: 27 | B58: 736 | C58: 60.16 | D58: 4.54 | E58: 174 | F58: 2.7 | G58: 3.23 | H58: 170 | I58: 13.6 | J58: 2060 | K58: 77 | L58: 1.93 | M58: 2.05 | N58: 403 | O58: 156 | P58: 8.1 | Q58: 27.8 | R58: 3.59 | S58: 3730 | T58: 14200 | U58: 9710 | V58: 3590 | W58: 160 | X58: 227 | Y58: 131 | Z58: 1320 | AA58: 284 | AB58: 271 | AC58: 16.5 | AD58: 5.48 | AE58: 58.1 | AF58: 334 | AG58: 8.15 | AH58: 13.8 | AI58: 3.64 | AJ58: 10.7 | AK58: 75 | AL58: 54 | AM58: 125 | AN58: 502 | AO58: 82.1 | AP58: 1390 | AQ58: 10400 | AR58: 58.4 | AS58: 376 | AT58: 7850 | AU58: 326 | AV58: 4570 | AW58: 255 | AX58: 37.8 | AY58: 7850 | AZ58: 211 | BA58: 3.99 | BB58: 23.1 | BC58: 8.53
A59: 28 | B59: 166 | C59: 82.78 | D59: 5.32 | E59: 156 | F59: 0.63 | G59: 0.62 | H59: 511 | I59: 27.8 | J59: 2450 | K59: 36.1 | L59: 0.63 | M59: 0.78 | N59: 513 | O59: 146 | P59: 11.2 | Q59: 49 | R59: 2.17 | S59: 1230 | T59: 21800 | U59: 13900 | V59: 1660 | W59: 155 | X59: 340 | Y59: 187 | Z59: 282 | AA59: 470 | AB59: 611 | AC59: 23.7 | AD59: 9.18 | AE59: 75.1 | AF59: 513 | AG59: 20.1 | AH59: 21.8 | AI59: 6.38 | AJ59: 23.8 | AK59: 124 | AL59: 81.9 | AM59: 136 | AN59: 300 | AO59: 12.3 | AP59: 263 | AQ59: 9070 | AR59: 21.8 | AS59: 193 | AT59: 4080 | AU59: 244 | AV59: 2240 | AW59: 204 | AX59: 39 | AY59: 4060 | AZ59: 90.5 | BA59: 5.11 | BB59: 12.4 | BC59: 4.37
A60: 29 | B60: 302 | C60: 42.57 | D60: 1.53 | E60: 165 | F60: 1.11 | G60: 1.1 | H60: 107 | I60: 10.9 | J60: 2010 | K60: 53.2 | L60: 0.52 | M60: 0.67 | N60: 448 | O60: 133 | P60: 8.87 | Q60: 28.7 | R60: 5.18 | S60: 886 | T60: 14400 | U60: 9950 | V60: 1040 | W60: 149 | X60: 214 | Y60: 178 | Z60: 289 | AA60: 191 | AB60: 171 | AC60: 13.1 | AD60: 3.97 | AE60: 42.8 | AF60: 285 | AG60: 8.43 | AH60: 10.8 | AI60: 3.52 | AJ60: 13 | AK60: 51.1 | AL60: 46.8 | AM60: 130 | AN60: 274 | AO60: 24 | AP60: 474 | AQ60: 13100 | AR60: 35.7 | AS60: 288 | AT60: 6840 | AU60: 234 | AV60: 3050 | AW60: 176 | AX60: 38.1 | AY60: 6160 | AZ60: 127 | BA60: 8.18 | BB60: 19.4 | BC60: 2.77
A61: 30 | B61: 134 | C61: 84.05 | D61: 1.45 | E61: 191 | F61: 0.78 | G61: 0.85 | H61: 985 | I61: 24.9 | J61: 2030 | K61: 24.1 | L61: 0.96 | M61: 1.12 | N61: 592 | O61: 135 | P61: 8.26 | Q61: 48.1 | R61: 2.73 | S61: 1970 | T61: 19500 | U61: 13200 | V61: 2010 | W61: 177 | X61: 299 | Y61: 249 | Z61: 743 | AA61: 417 | AB61: 658 | AC61: 7.19 | AD61: 4.06 | AE61: 29.6 | AF61: 258 | AG61: 8.88 | AH61: 7.73 | AI61: 3.36 | AJ61: 12.8 | AK61: 40.4 | AL61: 30.8 | AM61: 67.8 | AN61: 183 | AO61: 14.6 | AP61: 412 | AQ61: 6050 | AR61: 23.4 | AS61: 162 | AT61: 2070 | AU61: 106 | AV61: 2510 | AW61: 100 | AX61: 23.2 | AY61: 4110 | AZ61: 74.4 | BA61: 4.91 | BB61: 10.2 | BC61: 3.75
A62: Average | B62: 416 | C62: 143.373 | D62: 6.777 | E62: 203.1 | F62: 3.546 | G62: 3.575 | H62: 873.7 | I62: 32.89 | J62: 2918 | K62: 100.2 | L62: 2.575 | M62: 2.546 | N62: 507.3 | O62: 142.48 | P62: 12.23 | Q62: 41.23 | R62: 3.277 | S62: 5077.6 | T62: 21290 | U62: 15616 | V62: 5094 | W62: 171.3 | X62: 372.9 | Y62: 189.1 | Z62: 1501.4 | AA62: 517.8 | AB62: 530.5 | AC62: 22.139 | AD62: 8.49 | AE62: 76.63 | AF62: 453.8 | AG62: 14.13 | AH62: 20.913 | AI62: 5.254 | AJ62: 17.83 | AK62: 117.58 | AL62: 71.76 | AM62: 130.28 | AN62: 342.2 | AO62: 54.454 | AP62: 1357.7 | AQ62: 15853 | AR62: 92.29 | AS62: 354.9 | AT62: 7816 | AU62: 307.6 | AV62: 5335 | AW62: 272.7 | AX62: 37.61 | AY62: 11399 | AZ62: 179.43 | BA62: 5.816 | BB62: 20.66 | BC62: 8.113
A63: SD | B63: 230.7918735 | C63: 135.4958723 | D63: 6.517709294 | E63: 87.90834874 | F63: 2.735049055 | G63: 2.627712355 | H63: 1449.322681 | I63: 44.02106693 | J63: 1380.288215 | K63: 51.19442244 | L63: 1.775207343 | M63: 1.488781754 | N63: 198.0185457 | O63: 43.83047646 | P63: 8.617028361 | Q63: 18.04513169 | R63: 1.185046178 | S63: 3664.843159 | T63: 8940.973101 | U63: 7502.162947 | V63: 3073.062895 | W63: 66.00681783 | X63: 224.6767802 | Y63: 62.21727163 | Z63: 1050.167944 | AA63: 378.5210401 | AB63: 312.8639214 | AC63: 10.94563784 | AD63: 4.101365626 | AE63: 43.69581851 | AF63: 146.8701619 | AG63: 6.472904208 | AH63: 13.44592962 | AI63: 1.746750634 | AJ63: 6.330183427 | AK63: 97.07562688 | AL63: 35.50189979 | AM63: 34.20048083 | AN63: 86.50086705 | AO63: 44.19403987 | AP63: 963.1476234 | AQ63: 8306.539659 | AR63: 67.30557926 | AS63: 153.6485528 | AT63: 4925.036266 | AU63: 117.7598309 | AV63: 2823.477958 | AW63: 164.705832 | AX63: 13.79931158 | AY63: 7896.715843 | AZ63: 72.95472036 | BA63: 2.739919707 | BB63: 7.243725254 | BC63: 6.529749102
A65: 31 | B65: 137 | C65: 62.81 | D65: 8.79 | E65: 197 | F65: 2.12 | G65: 1.8 | H65: 391 | I65: 12.9 | J65: 1190 | K65: 43.7 | L65: 2.64 | M65: 2.15 | N65: 218 | O65: 54.1 | P65: 4.1 | Q65: 23.9 | R65: 1.41 | S65: 3950 | T65: 17600 | U65: 12200 | V65: 4270 | W65: 72.3 | X65: 137 | Y65: 196 | Z65: 872 | AA65: 326 | AB65: 417 | AC65: 42.1 | AD65: 16.5 | AE65: 120 | AF65: 810 | AG65: 28.8 | AH65: 27.2 | AI65: 8.87 | AJ65: 44.6 | AK65: 171 | AL65: 96.7 | AM65: 145 | AN65: 279 | AO65: 31.3 | AP65: 1680 | AQ65: 7930 | AR65: 127 | AS65: 217 | AT65: 13000 | AU65: 154 | AV65: 3950 | AW65: 172 | AX65: 44.6 | AY65: 8310 | AZ65: 132 | BA65: 4.84 | BB65: 47.9 | BC65: 28.7
A66: 32 | B66: 255 | C66: 50.98 | D66: 2.92 | E66: 134 | F66: 5.12 | G66: 4.6 | H66: 426 | I66: 18.8 | J66: 1360 | K66: 83.5 | L66: 6.21 | M66: 5.07 | N66: 300 | O66: 74.7 | P66: 6.6 | Q66: 38.4 | R66: 1.89 | S66: 13300 | T66: 22800 | U66: 13400 | V66: 10100 | W66: 80.7 | X66: 176 | Y66: 141 | Z66: 3730 | AA66: 342 | AB66: 646 | AC66: 39.7 | AD66: 18.5 | AE66: 133 | AF66: 799 | AG66: 20.6 | AH66: 20.8 | AI66: 5.89 | AJ66: 22.3 | AK66: 177 | AL66: 88.9 | AM66: 94 | AN66: 312 | AO66: 73.7 | AP66: 3610 | AQ66: 20400 | AR66: 206 | AS66: 331 | AT66: 11100 | AU66: 281 | AV66: 11600 | AW66: 332 | AX66: 32.2 | AY66: 30200 | AZ66: 284 | BA66: 3.49 | BB66: 28.9 | BC66: 15.2
A67: 33 | B67: 191 | C67: 162.4 | D67: 11.6 | E67: 330 | F67: 1.87 | G67: 2.13 | H67: 413 | I67: 33 | J67: 3620 | K67: 79.6 | L67: 1.94 | M67: 2.15 | N67: 654 | O67: 208 | P67: 20.7 | Q67: 65.8 | R67: 4.97 | S67: 2790 | T67: 30100 | U67: 19200 | V67: 3720 | W67: 221 | X67: 560 | Y67: 299 | Z67: 1320 | AA67: 794 | AB67: 895 | AC67: 24.8 | AD67: 10.4 | AE67: 73.6 | AF67: 555 | AG67: 30.4 | AH67: 25.7 | AI67: 7.38 | AJ67: 26.7 | AK67: 121 | AL67: 74.4 | AM67: 129 | AN67: 325 | AO67: 41.2 | AP67: 720 | AQ67: 12800 | AR67: 56.9 | AS67: 383 | AT67: 3540 | AU67: 360 | AV67: 4500 | AW67: 263 | AX67: 53.8 | AY67: 7920 | AZ67: 224 | BA67: 6.74 | BB67: 19.4 | BC67: 5.47
A68: 34 | B68: 161 | C68: 203.08 | D68: 6.92 | E68: 205 | F68: 1.06 | G68: 1.2 | H68: 208 | I68: 11.7 | J68: 2250 | K68: 41.4 | L68: 2.98 | M68: 3.36 | N68: 446 | O68: 137 | P68: 15.7 | Q68: 37.2 | R68: 0.742 | S68: 5460 | T68: 35500 | U68: 29200 | V68: 6640 | W68: 178 | X68: 436 | Y68: 216 | Z68: 3870 | AA68: 1640 | AB68: 1180 | AC68: 15.6 | AD68: 7.93 | AE68: 41.1 | AF68: 455 | AG68: 15.5 | AH68: 12 | AI68: 5.06 | AJ68: 16.6 | AK68: 51.7 | AL68: 44.6 | AM68: 81.5 | AN68: 236 | AO68: 22.8 | AP68: 649 | AQ68: 12600 | AR68: 38.5 | AS68: 215 | AT68: 1560 | AU68: 195 | AV68: 4390 | AW68: 265 | AX68: 30.6 | AY68: 7730 | AZ68: 137 | BA68: 5.07 | BB68: 25.7 | BC68: 5.29
A69: 35 | B69: 126 | C69: 36.4 | E69: 99.8 | F69: 0.95 | G69: 0.97 | H69: 73.8 | I69: 4.72 | J69: 1180 | K69: 28 | L69: 2.29 | M69: 2.61 | N69: 188 | O69: 87.5 | P69: 7.47 | Q69: 19.1 | R69: 0.619 | S69: 3130 | T69: 20000 | U69: 11500 | V69: 4710 | W69: 105 | X69: 218 | Y69: 194 | Z69: 2540 | AA69: 446 | AB69: 427 | AC69: 19.2 | AD69: 7.03 | AE69: 63.5 | AF69: 435 | AG69: 14.6 | AH69: 11 | AI69: 4.94 | AJ69: 16.9 | AK69: 61.4 | AL69: 51.8 | AM69: 73.9 | AN69: 274 | AO69: 17.9 | AP69: 487 | AQ69: 15400 | AR69: 34.8 | AS69: 134 | AT69: 1200 | AU69: 103 | AV69: 2640 | AW69: 186 | AX69: 12.8 | AY69: 4930 | AZ69: 105 | BA69: 4.96 | BB69: 18.6 | BC69: 5.4
A70: 36 | B70: 122 | C70: 50.81 | D70: 2.09 | E70: 109 | F70: 0.56 | G70: 0.58 | H70: 138 | I70: 10.7 | J70: 1680 | K70: 22.5 | L70: 1.44 | M70: 1.67 | N70: 257 | O70: 89.6 | P70: 14.3 | Q70: 28.7 | R70: 1.32 | S70: 1700 | T70: 17400 | U70: 14000 | V70: 2610 | W70: 93.6 | X70: 344 | Y70: 194 | Z70: 727 | AA70: 697 | AB70: 802 | AC70: 38.9 | AD70: 18.9 | AE70: 92.7 | AF70: 817 | AG70: 32.9 | AH70: 38.4 | AI70: 6.83 | AJ70: 26.2 | AK70: 182 | AL70: 103 | AM70: 90.5 | AN70: 265 | AO70: 7.63 | AP70: 174 | AQ70: 5910 | AR70: 21.1 | AS70: 144 | AT70: 1080 | AU70: 108 | AV70: 2180 | AW70: 118 | AX70: 19.1 | AY70: 4360 | AZ70: 116 | BA70: 3.88 | BB70: 12.2 | BC70: 2.03
A71: 37 | B71: 129 | C71: 54 | D71: 1.8 | E71: 93.6 | F71: 0.6 | G71: 0.61 | H71: 92.3 | I71: 6.37 | J71: 1070 | K71: 20.7 | L71: 1.01 | M71: 1.06 | N71: 234 | O71: 71.7 | P71: 9.33 | Q71: 25.2 | R71: 1.14 | S71: 1550 | T71: 21700 | U71: 11400 | V71: 1780 | W71: 82.1 | X71: 160 | Y71: 196 | Z71: 686 | AA71: 331 | AB71: 287 | AC71: 22.3 | AD71: 10.1 | AE71: 62.8 | AF71: 529 | AG71: 19.4 | AH71: 17.1 | AI71: 5.28 | AJ71: 17.7 | AK71: 97.6 | AL71: 55 | AM71: 104 | AN71: 208 | AO71: 11.8 | AP71: 341 | AQ71: 8120 | AR71: 34.8 | AS71: 161 | AT71: 2040 | AU71: 105 | AV71: 2820 | AW71: 137 | AX71: 19.5 | AY71: 5060 | AZ71: 144 | BA71: 4.31 | BB71: 17.4 | BC71: 5.74
A72: 38 | B72: 209 | C72: 207.93 | D72: 6.07 | E72: 279 | F72: 0.9 | G72: 0.98 | H72: 224 | I72: 15.8 | J72: 2840 | K72: 44.7 | L72: 1.81 | M72: 2.09 | N72: 614 | O72: 182 | P72: 24.5 | Q72: 52.6 | R72: 3.38 | S72: 3030 | T72: 40900 | U72: 29900 | V72: 4500 | W72: 210 | X72: 475 | Y72: 362 | Z72: 1570 | AA72: 1730 | AB72: 1430 | AC72: 16.5 | AD72: 4.27 | AE72: 53.6 | AF72: 455 | AG72: 18 | AH72: 21.3 | AI72: 4.86 | AJ72: 16.2 | AK72: 84.1 | AL72: 63.3 | AM72: 92.6 | AN72: 234 | AO72: 14.1 | AP72: 382 | AQ72: 6260 | AR72: 34.8 | AS72: 202 | AT72: 1530 | AU72: 206 | AV72: 3380 | AW72: 261 | AX72: 24.7 | AY72: 5520 | AZ72: 122 | BA72: 6.05 | BB72: 16 | BC72: 3.46
A73: 39 | B73: 143 | C73: 24.687 | D73: 0.713 | E73: 87.9 | F73: 0.64 | G73: 0.69 | H73: 114 | I73: 8.03 | J73: 944 | K73: 40.9 | L73: 2.13 | M73: 2.33 | N73: 172 | O73: 72.5 | P73: 8.66 | Q73: 17.8 | R73: 1.66 | S73: 3270 | T73: 17800 | U73: 10900 | V73: 3720 | W73: 74.7 | X73: 188 | Y73: 134 | Z73: 1380 | AA73: 403 | AB73: 459 | AC73: 15.5 | AD73: 6.07 | AE73: 45.5 | AF73: 338 | AG73: 10 | AH73: 8.71 | AI73: 3.22 | AJ73: 10.6 | AK73: 44.5 | AL73: 39.8 | AM73: 61.7 | AN73: 205 | AO73: 12.9 | AP73: 342 | AQ73: 13600 | AR73: 23 | AS73: 134 | AT73: 1020 | AU73: 201 | AV73: 2690 | AW73: 157 | AX73: 11.3 | AY73: 8990 | AZ73: 134 | BA73: 3.62 | BB73: 19.1 | BC73: 2.61
A74: 40 | B74: 131 | C74: 36.35 | D74: 1.25 | E74: 105 | F74: 0.71 | G74: 0.7 | H74: 265 | I74: 16.6 | J74: 1270 | K74: 36.3 | L74: 1.81 | M74: 2.05 | N74: 254 | O74: 71.3 | P74: 10.4 | Q74: 32.9 | R74: 1.54 | S74: 2040 | T74: 17000 | U74: 11700 | V74: 3640 | W74: 81.1 | X74: 254 | Y74: 155 | Z74: 1230 | AA74: 536 | AB74: 609 | AC74: 19.3 | AD74: 8.58 | AE74: 59.9 | AF74: 500 | AG74: 14.8 | AH74: 15.4 | AI74: 4.31 | AJ74: 13.3 | AK74: 97.9 | AL74: 58.7 | AM74: 75.6 | AN74: 194 | AO74: 12.4 | AP74: 209 | AQ74: 7830 | AR74: 23 | AS74: 159 | AT74: 1050 | AU74: 185 | AV74: 2680 | AW74: 169 | AX74: 14.5 | AY74: 5420 | AZ74: 122 | BA74: 3.96 | BB74: 16.7 | BC74: 6.86
A75: Average | B75: 160.4 | C75: 88.9447 | D75: 4.683666667 | E75: 164.03 | F75: 1.453 | G75: 1.426 | H75: 234.51 | I75: 13.862 | J75: 1740.4 | K75: 44.13 | L75: 2.426 | M75: 2.454 | N75: 333.7 | O75: 104.84 | P75: 12.176 | Q75: 34.16 | R75: 1.8671 | S75: 4022 | T75: 24080 | U75: 16340 | V75: 4569 | W75: 119.85 | X75: 294.8 | Y75: 208.7 | Z75: 1792.5 | AA75: 724.5 | AB75: 715.2 | AC75: 25.39 | AD75: 10.828 | AE75: 74.57 | AF75: 569.3 | AG75: 20.5 | AH75: 19.761 | AI75: 5.664 | AJ75: 21.11 | AK75: 108.82 | AL75: 67.62 | AM75: 94.78 | AN75: 253.2 | AO75: 24.573 | AP75: 859.4 | AQ75: 11085 | AR75: 59.99 | AS75: 208 | AT75: 3712 | AU75: 189.8 | AV75: 4083 | AW75: 206 | AX75: 26.31 | AY75: 8844 | AZ75: 152 | BA75: 4.692 | BB75: 22.19 | BC75: 8.076
A76: SD | B76: 44.22970344 | C76: 72.2925982 | D76: 3.829656773 | E76: 85.52192766 | F76: 1.395110908 | G76: 1.230087621 | H76: 135.25586 | I76: 8.104976249 | J76: 886.4419765 | K76: 21.51180813 | L76: 1.443369515 | M76: 1.092522057 | N76: 175.7030639 | O76: 52.61483103 | P76: 6.528107093 | Q76: 15.20140344 | R76: 1.330321636 | S76: 3455.240143 | T76: 8496.378313 | U76: 7360.887628 | V76: 2331.329854 | W76: 59.07455271 | X76: 149.56069 | Y76: 71.11032118 | Z76: 1182.978656 | AA76: 530.3211291 | AB76: 365.7387653 | AC76: 10.66931738 | AD76: 5.274931911 | AE76: 31.07146065 | AF76: 175.2300393 | AG76: 7.67883093 | AH76: 8.985685468 | AI76: 1.637173716 | AJ76: 9.750264954 | AK76: 52.19957003 | AL76: 22.13051187 | AM76: 25.55220364 | AN76: 45.19783672 | AO76: 20.07536802 | AP76: 1059.282378 | AQ76: 4670.8511 | AR76: 60.03072269 | AS76: 85.3606727 | AT76: 4480.049107 | AU76: 81.9360184 | AV76: 2758.683462 | AW76: 69.49180607 | AX76: 14.10897665 | AY76: 7681.124339 | AZ76: 56.69215113 | BA76: 1.065111366 | BB76: 10.21855067 | BC76: 8.113699252
A78: p-values Two-Way ANOVA with Tukey's HSD for Multiple Comparisons
A79: LFD ACSL4floxed vs. Ad-KO | B79: 0.9965 | C79: 0.5841 | D79: 0.8354 | E79: 0.632 | F79: 0.9647 | G79: 0.9745 | H79: 0.9898 | I79: 0.8193 | J79: 0.9999 | K79: 0.9882 | L79: 1 | M79: 0.9839 | N79: 0.9947 | O79: 0.9808 | P79: 0.8566 | Q79: 1 | R79: 0.1072 | S79: 1 | T79: 0.62 | U79: 0.6081 | V79: 0.949 | W79: 0.9967 | X79: 0.6767 | Y79: 0.3264 | Z79: 0.9988 | AA79: 0.9976 | AB79: 0.735 | AC79: 0.9087 | AD79: 0.9998 | AE79: 0.9998 | AF79: 0.9999 | AG79: 0.43 | AH79: 0.6319 | AI79: 0.8568 | AJ79: 0.997 | AK79: 0.9742 | AL79: 0.7498 | AM79: 0.8554 | AN79: 0.8465 | AO79: 0.9499 | AP79: 0.3797 | AQ79: 0.7152 | AR79: 0.9169 | AS79: 0.6854 | AT79: 0.2541 | AU79: 0.8794 | AV79: 1 | AW79: 0.8772 | AX79: 0.9994 | AY79: 0.9993 | AZ79: 0.9811 | BA79: 0.3924 | BB79: 0.9135 | BC79: 0.8835
A80: ACSL4floxed LFD vs. HFD | B80: 0.0031 | C80: 0.5129 | D80: 0.6969 | E80: 0.8785 | F80: 0.5171 | G80: 0.5037 | H80: 0.7125 | I80: 0.9986 | J80: 0.7752 | K80: 0.9985 | L80: 0.9989 | M80: 0.9997 | N80: 0.9997 | O80: 0.9802 | P80: 0.4459 | Q80: 0.197 | R80: 0.8615 | S80: 0.9857 | T80: 0.2975 | U80: 0.7589 | V80: 0.5699 | W80: 0.8 | X80: 0.6312 | Y80: 0.7483 | Z80: 0.4138 | AA80: 0.1816 | AB80: 0.0007 | AC80: <.0001 | AD80: <.0001 | AE80: <.0001 | AF80: <.0001 | AG80: <.0001 | AH80: 0.0009 | AI80: <.0001 | AJ80: 0.0015 | AK80: 0.2329 | AL80: 0.8194 | AM80: 0.6871 | AN80: 0.0398 | AO80: 0.741 | AP80: 0.9096 | AQ80: 0.9946 | AR80: 0.9988 | AS80: 0.9316 | AT80: 0.9645 | AU80: 0.7443 | AV80: 0.6784 | AW80: 0.7756 | AX80: 0.7938 | AY80: 0.2654 | AZ80: 0.0756 | BA80: 0.603 | BB80: 0.9879 | BC80: 0.5414
A81: HFD ACSL4floxed vs. Ad-KO | B81: 0.0002 | C81: 0.5958 | D81: 0.7892 | E81: 0.8118 | F81: 0.1171 | G81: 0.0974 | H81: 0.2644 | I81: 0.3899 | J81: 0.076 | K81: 0.0421 | L81: 0.9951 | M81: 0.9982 | N81: 0.1856 | O81: 0.5835 | P81: 1 | Q81: 0.9289 | R81: 0.2362 | S81: 0.8695 | T81: 0.9005 | U81: 0.9967 | V81: 0.9763 | W81: 0.4314 | X81: 0.8459 | Y81: 0.9667 | Z81: 0.9321 | AA81: 0.8773 | AB81: 0.8793 | AC81: 0.9955 | AD81: 0.9355 | AE81: 0.9998 | AF81: 0.8176 | AG81: 0.307 | AH81: 0.9946 | AI81: 0.9776 | AJ81: 0.7932 | AK81: 0.9916 | AL81: 0.9806 | AM81: 0.0241 | AN81: 0.0212 | AO81: 0.2093 | AP81: 0.6851 | AQ81: 0.4538 | AR81: 0.6111 | AS81: 0.1656 | AT81: 0.617 | AU81: 0.2718 | AV81: 0.7543 | AW81: 0.8255 | AX81: 0.6034 | AY81: 0.9076 | AZ81: 0.9072 | BA81: 0.8683 | BB81: 0.9758 | BC81: 1

Sheet Free Oxylipins
A1: Free Oxylipin analysis: Gonadal White Adipose Tissue from ACSL4 floxed & Ad-KO males fed LFD or HFD for 12 weeks
A3: Sample IDs: | B3: 1 | C3: ACSL4floxed LFD | E3: 21 | F3: ACSL4floxed HFD
B4: 2 | C4: ACSL4floxed LFD | E4: 22 | F4: ACSL4floxed HFD
B5: 3 | C5: ACSL4floxed LFD | E5: 23 | F5: ACSL4floxed HFD
B6: 4 | C6: ACSL4floxed LFD | E6: 24 | F6: ACSL4floxed HFD
B7: 5 | C7: ACSL4floxed LFD | E7: 25 | F7: ACSL4floxed HFD
B8: 6 | C8: ACSL4floxed LFD | E8: 26 | F8: ACSL4floxed HFD
B9: 7 | C9: ACSL4floxed LFD | E9: 27 | F9: ACSL4floxed HFD
B10: 8 | C10: ACSL4floxed LFD | E10: 28 | F10: ACSL4floxed HFD
B11: 9 | C11: ACSL4floxed LFD | E11: 29 | F11: ACSL4floxed HFD
B12: 10 | C12: ACSL4floxed LFD | E12: 30 | F12: ACSL4floxed HFD
B13: 11 | C13: Ad-KO LFD | E13: 31 | F13: Ad-KO HFD
B14: 12 | C14: Ad-KO LFD | E14: 32 | F14: Ad-KO HFD
B15: 13 | C15: Ad-KO LFD | E15: 33 | F15: Ad-KO HFD
B16: 14 | C16: Ad-KO LFD | E16: 34 | F16: Ad-KO HFD
B17: 15 | C17: Ad-KO LFD | E17: 35 | F17: Ad-KO HFD
B18: 16 | C18: Ad-KO LFD | E18: 36 | F18: Ad-KO HFD
B19: 17 | C19: Ad-KO LFD | E19: 37 | F19: Ad-KO HFD
B20: 18 | C20: Ad-KO LFD | E20: 38 | F20: Ad-KO HFD
B21: 19 | C21: Ad-KO LFD | E21: 39 | F21: Ad-KO HFD
B22: 20 | C22: Ad-KO LFD | E22: 40 | F22: Ad-KO HFD
B24: Free Oxylipin (pmol/gram Adipose Tissue)
A25: Sample ID | B25: 9_12_13-TriHOME | C25: 6-keto PGF1a | D25: PGF2a | E25: PGE2 | F25: 11-HETE | G25: 12-HETE | H25: 12-HEPE | I25: 5-HETE | J25: 5-KETE | K25: 15-HETE | L25: 15-KETE | M25: 9-HETE | N25: 15-HEPE | O25: 13-KODE | P25: 13-HODE | Q25: 9-HODE | R25: 9-KODE | S25: 8-HETE | T25: 5-HEPE | U25: 12(13)-Ep-9-KODE | V25: 9-HOTE | W25: 13-HOTE | X25: 9_10-DiHODE | Y25: 12_13-DiHODE | Z25: 15_16-DiHODE | AA25: 9_10-DiHOME | AB25: 14_15-DiHETrE | AC25: 14_15-DiHETE | AD25: 11_12-DiHETrE | AE25: 8_9-DiHETrE | AF25: 17_18-DiHETE | AG25: 19_20-DiHDoPA | AH25: 5_6-DiHETrE | AI25: 9_10-e-DiHO | AJ25: 9(10)-EpODE | AK25: 9_10-EpO | AL25: 12(13)-EpODE | AM25: 14(15)-EpETrE | AN25: 15(16)-EpODE | AO25: 11(12)-EpETrE | AP25: 12(13)-EpOME | AQ25: 8(9)-EpETrE | AR25: 9(10)-EpOME | AS25: 10-Nitrooleate | AT25: 9-Nitrooleate
A26: 1 | B26: 8.72 | C26: 0.657 | D26: 0.669 | E26: 4.77 | F26: 4.11 | G26: 47.8 | H26: 1.4 | I26: 4.43 | J26: 1 | K26: 17.3 | L26: 1.08 | M26: 0.833 | N26: 6.16 | O26: 28.9 | P26: 304 | Q26: 93.3 | R26: 76.8 | S26: 2.02 | T26: 0.336 | U26: 46.4 | V26: 4.31 | W26: 135 | X26: 2.14 | Y26: 2.82 | Z26: 27.6 | AA26: 24.5 | AB26: 1.34 | AC26: 0.435 | AD26: 0.514 | AE26: 0.877 | AF26: 8.18 | AG26: 4.06 | AH26: 0.415 | AI26: 5.46 | AJ26: 7.57 | AK26: 40.8 | AL26: 2.62 | AM26: 3.17 | AN26: 24.6 | AO26: 1.78 | AP26: 43.2 | AQ26: 1.72 | AR26: 55 | AS26: 2.59 | AT26: 1.25
A27: 2 | B27: 12.8 | C27: 1.91 | D27: 0.913 | E27: 5.37 | F27: 5.8 | G27: 212 | H27: 5.58 | I27: 7.59 | J27: 1.19 | K27: 56.3 | L27: 1.57 | M27: 1.14 | N27: 19.1 | O27: 37.8 | P27: 924 | Q27: 152 | R27: 96.4 | S27: 5.13 | T27: 0.596 | U27: 58.4 | V27: 10.8 | W27: 779 | X27: 2.05 | Y27: 1.88 | Z27: 27.9 | AA27: 27.2 | AB27: 1.14 | AC27: 0.908 | AD27: 0.522 | AE27: 0.889 | AF27: 5.04 | AG27: 3.56 | AH27: 0.314 | AI27: 10.6 | AJ27: 8.86 | AK27: 72.9 | AL27: 3.12 | AM27: 3.62 | AN27: 28.5 | AO27: 2.19 | AP27: 53.9 | AQ27: 1.86 | AR27: 50.1 | AS27: 4.92 | AT27: 2.9
A28: 3 | B28: 8.29 | C28: 0.911 | D28: 1.02 | E28: 1.41 | F28: 5.02 | G28: 80.7 | H28: 4.34 | I28: 8.33 | J28: 2.58 | K28: 34.1 | L28: 3.51 | M28: 1.37 | N28: 12.2 | O28: 41 | P28: 363 | Q28: 99.8 | R28: 128 | S28: 3.56 | T28: 0.672 | U28: 108 | V28: 9.76 | W28: 169 | X28: 1.61 | Y28: 1.18 | Z28: 16.4 | AA28: 20.4 | AB28: 1.92 | AC28: 1.09 | AD28: 0.816 | AE28: 0.995 | AF28: 12.6 | AG28: 4.61 | AH28: 0.496 | AI28: 7.97 | AJ28: 8.79 | AK28: 51.1 | AL28: 3.89 | AM28: 5.6 | AN28: 33.3 | AO28: 3.05 | AP28: 45.4 | AQ28: 2.76 | AR28: 41.2 | AS28: 0.946 | AT28: 0.527
A29: 4 | B29: 7.45 | C29: 0.438 | E29: 1.06 | F29: 2.28 | G29: 38.4 | H29: 1.59 | I29: 5.38 | J29: 1.53 | K29: 17.8 | L29: 1.04 | M29: 1.05 | N29: 8.52 | O29: 46.8 | P29: 447 | Q29: 99.5 | R29: 135 | S29: 1.95 | T29: 0.476 | U29: 95.1 | V29: 7.87 | W29: 261 | X29: 2.79 | Y29: 2.45 | Z29: 33.7 | AA29: 33.3 | AB29: 2.09 | AC29: 1.77 | AD29: 0.838 | AE29: 1.37 | AF29: 8.77 | AG29: 5.46 | AH29: 0.509 | AI29: 8.61 | AJ29: 6.72 | AK29: 53.8 | AL29: 1.59 | AM29: 2.38 | AN29: 26.1 | AO29: 1.31 | AP29: 35.4 | AQ29: 1.57 | AR29: 35.4 | AS29: 2.09 | AT29: 1.72
A30: 5 | B30: 16.1 | C30: 4.21 | E30: 3.91 | F30: 5.38 | G30: 161 | H30: 3.15 | I30: 7.04 | J30: 0.99 | K30: 46.9 | L30: 1.56 | M30: 1.67 | N30: 10.1 | O30: 31.4 | P30: 715 | Q30: 99.1 | R30: 90.9 | S30: 4.54 | T30: 0.32 | U30: 47.5 | V30: 6.76 | W30: 383 | X30: 1.88 | Y30: 2.67 | Z30: 25.4 | AA30: 26 | AB30: 2.98 | AC30: 0.787 | AD30: 1.33 | AE30: 2.05 | AF30: 9.79 | AG30: 10.7 | AH30: 0.52 | AI30: 21.1 | AJ30: 4.54 | AK30: 64.2 | AL30: 1.86 | AM30: 2.51 | AN30: 20.8 | AO30: 1.17 | AP30: 29.3 | AQ30: 1.31 | AR30: 28.1 | AS30: 2.68 | AT30: 0.834
A31: 6 | B31: 10.9 | C31: 1.29 | D31: 0.914 | E31: 2.55 | F31: 3.43 | G31: 80 | H31: 2.37 | I31: 7.3 | J31: 1.64 | K31: 28.1 | L31: 1.7 | M31: 1.24 | N31: 11.7 | O31: 55.8 | P31: 548 | Q31: 120 | R31: 153 | S31: 4.33 | T31: 0.625 | U31: 80.2 | V31: 9.39 | W31: 304 | X31: 4.17 | Y31: 4.05 | Z31: 46.3 | AA31: 46.7 | AB31: 3.46 | AC31: 2.75 | AD31: 1.46 | AE31: 1.99 | AF31: 13.2 | AG31: 9.62 | AH31: 0.621 | AI31: 25.4 | AJ31: 7.59 | AK31: 85.3 | AL31: 2.16 | AM31: 3.64 | AN31: 44.3 | AO31: 1.49 | AP31: 32 | AQ31: 1.58 | AR31: 45.3 | AS31: 2.03 | AT31: 1.18
A32: 7 | B32: 17.9 | C32: 1.17 | E32: 3.53 | F32: 6.08 | G32: 136 | H32: 3.66 | I32: 8.37 | J32: 1.95 | K32: 41.1 | L32: 2.84 | M32: 1.75 | N32: 15.5 | O32: 58.6 | P32: 670 | Q32: 131 | R32: 171 | S32: 5.21 | T32: 0.76 | U32: 182 | V32: 11.1 | W32: 416 | X32: 2.81 | Y32: 2.94 | Z32: 30.8 | AA32: 32 | AB32: 2.08 | AC32: 1.36 | AD32: 1.07 | AE32: 1.75 | AF32: 12.9 | AG32: 4.13 | AH32: 1.06 | AI32: 23.1 | AJ32: 11.3 | AK32: 134 | AL32: 3.93 | AM32: 4.09 | AN32: 48.5 | AO32: 1.98 | AP32: 63.2 | AQ32: 2.76 | AR32: 81.4 | AT32: 35.7
A33: 8 | B33: 8.46 | C33: 0.315 | D33: 0.882 | E33: 1.05 | F33: 2.4 | G33: 8.29 | H33: 0.518 | I33: 4.94 | J33: 0.774 | K33: 5.13 | L33: 0.812 | M33: 0.749 | N33: 1.58 | O33: 52.8 | P33: 287 | Q33: 106 | R33: 145 | S33: 1.36 | T33: 0.476 | U33: 81.4 | V33: 7.48 | W33: 31.6 | X33: 2.17 | Y33: 1.62 | Z33: 29.8 | AA33: 31.3 | AB33: 1.24 | AC33: 0.938 | AD33: 0.55 | AE33: 0.984 | AF33: 7.53 | AG33: 4.12 | AH33: 0.419 | AI33: 10 | AJ33: 9.28 | AK33: 53.5 | AL33: 3.56 | AM33: 2.56 | AN33: 34.1 | AO33: 1.43 | AP33: 57.7 | AQ33: 1.43 | AR33: 56.3 | AS33: 7.36 | AT33: 2.97
A34: 9 | B34: 12.7 | C34: 1.51 | D34: 1.48 | E34: 4.67 | F34: 4.55 | G34: 135 | H34: 4.16 | I34: 6.84 | J34: 1.58 | K34: 20.2 | L34: 2.29 | M34: 1.09 | N34: 6.51 | O34: 28.9 | P34: 333 | Q34: 81.2 | R34: 102 | S34: 2.54 | T34: 0.544 | U34: 64.7 | V34: 4.15 | W34: 111 | X34: 2.12 | Y34: 2.32 | Z34: 22.4 | AA34: 25.5 | AB34: 1.71 | AC34: 1.56 | AD34: 0.689 | AE34: 0.965 | AF34: 6.84 | AG34: 5.46 | AH34: 0.511 | AI34: 48.9 | AJ34: 5.13 | AK34: 131 | AL34: 1.56 | AM34: 3.04 | AN34: 26.5 | AO34: 1.56 | AP34: 30.4 | AQ34: 2.07 | AR34: 39.3 | AS34: 2.09 | AT34: 1.48
A35: 10 | B35: 15.35 | D35: 0.256 | E35: 0.731 | F35: 4.725 | G35: 26.2 | H35: 0.884 | I35: 7.955 | J35: 1.355 | K35: 10.01 | L35: 1.55 | M35: 3.405 | N35: 1.66 | O35: 95.55 | P35: 392.5 | Q35: 135.1 | R35: 263 | S35: 4.715 | T35: 0.4945 | U35: 110.75 | V35: 13.25 | W35: 56.15 | X35: 2.42 | Y35: 2.59 | Z35: 24.85 | AA35: 33.45 | AB35: 1.705 | AC35: 1.124 | AD35: 0.8095 | AE35: 1.245 | AF35: 10.4 | AG35: 4.15 | AH35: 0.5905 | AI35: 6.385 | AJ35: 8.07 | AK35: 52.25 | AL35: 2.4 | AM35: 2.61 | AN35: 29.65 | AO35: 1.55 | AP35: 40.45 | AQ35: 1.43 | AR35: 45.65 | AS35: 4.425 | AT35: 2.48
A36: Average | B36: =AVERAGE(B26:B35) -> 11.867 | C36: =AVERAGE(C26:C35) -> 1.379 | D36: =AVERAGE(D26:D35) -> 0.8762857143 | E36: =AVERAGE(E26:E35) -> 2.9051 | F36: =AVERAGE(F26:F35) -> 4.3775 | G36: =AVERAGE(G26:G35) -> 92.539 | H36: =AVERAGE(H26:H35) -> 2.7652 | I36: =AVERAGE(I26:I35) -> 6.8175 | J36: =AVERAGE(J26:J35) -> 1.4589 | K36: =AVERAGE(K26:K35) -> 27.694 | L36: =AVERAGE(L26:L35) -> 1.7952 | M36: =AVERAGE(M26:M35) -> 1.4297 | N36: =AVERAGE(N26:N35) -> 9.303 | O36: =AVERAGE(O26:O35) -> 47.755 | P36: =AVERAGE(P26:P35) -> 498.35 | Q36: =AVERAGE(Q26:Q35) -> 111.7 | R36: =AVERAGE(R26:R35) -> 136.11 | S36: =AVERAGE(S26:S35) -> 3.5355 | T36: =AVERAGE(T26:T35) -> 0.52995 | U36: =AVERAGE(U26:U35) -> 87.445 | V36: 8.487 | W36: 264.575 | X36: 2.416 | Y36: 2.452 | Z36: 28.515 | AA36: 30.035 | AB36: 1.9665 | AC36: 1.2722 | AD36: 0.85985 | AE36: 1.3115 | AF36: 9.525 | AG36: 5.587 | AH36: 0.54555 | AI36: 16.7525 | AJ36: =AVERAGE(AJ26:AJ35) -> 7.785 | AK36: 73.885 | AL36: 2.669 | AM36: 3.322 | AN36: 31.635 | AO36: 1.751 | AP36: 43.095 | AQ36: 1.849 | AR36: =AVERAGE(AR26:AR35) -> 47.775 | AS36: =AVERAGE(AS26:AS35) -> 3.236777778 | AT36: =AVERAGE(AT26:AT35) -> 5.1041
A37: SD | B37: =STDEV(B26:B35) -> 3.693270306 | C37: =STDEV(C26:C35) -> 1.179150648 | D37: =STDEV(D26:D35) -> 0.3687025514 | E37: =STDEV(E26:E35) -> 1.763919276 | F37: =STDEV(F26:F35) -> 1.323701145 | G37: =STDEV(G26:G35) -> 66.14662912 | H37: =STDEV(H26:H35) -> 1.676211655 | I37: =STDEV(I26:I35) -> 1.42060091 | J37: =STDEV(J26:J35) -> 0.5305352538 | K37: =STDEV(K26:K35) -> 16.64011432 | L37: =STDEV(L26:L35) -> 0.8498832338 | M37: =STDEV(M26:M35) -> 0.7648234437 | N37: =STDEV(N26:N35) -> 5.632347152 | O37: =STDEV(O26:O35) -> 20.04523288 | P37: =STDEV(P26:P35) -> 211.3412262 | Q37: =STDEV(Q26:Q35) -> 22.01903217 | R37: =STDEV(R26:R35) -> 53.80178539 | S37: =STDEV(S26:S35) -> 1.449629167 | T37: =STDEV(T26:T35) -> 0.1396301563 | U37: =STDEV(U26:U35) -> 40.40785437 | V37: 2.942674709 | W37: 223.7017052 | X37: 0.7200956727 | Y37: 0.7922233131 | Z37: 7.8781008 | AA37: 7.256110452 | AB37: 0.7472618536 | AC37: 0.6461896522 | AD37: 0.3315403486 | AE37: 0.4595479059 | AF37: 2.766290135 | AG37: 2.498333 | AH37: 0.2012966923 | AI37: 13.45494648 | AJ37: =STDEV(AJ26:AJ35) -> 1.989825509 | AK37: 33.33635028 | AL37: 0.9104754558 | AM37: 0.9835287941 | AN37: 8.764449973 | AO37: 0.5490891448 | AP37: 11.92738329 | AQ37: 0.5288656624 | AR37: =STDEV(AR26:AR35) -> 14.63202823 | AS37: =STDEV(AS26:AS35) -> 1.978274739 | AT37: =STDEV(AT26:AT35) -> 10.78285634
A39: 11 | B39: 12.9 | C39: 1.94 | D39: 1.44 | E39: 6.34 | F39: 8.96 | G39: 160 | H39: 6.53 | I39: 7.26 | J39: 0.879 | K39: 45 | L39: 1.72 | M39: 1.88 | N39: 13.9 | O39: 33 | P39: 730 | Q39: 151 | R39: 99.9 | S39: 4.81 | T39: 0.514 | U39: 58.2 | V39: 9.61 | W39: 410 | X39: 2.85 | Y39: 1.96 | Z39: 29.7 | AA39: 32.1 | AB39: 1.82 | AC39: 1.27 | AD39: 0.822 | AE39: 0.802 | AF39: 9.87 | AG39: 3.82 | AH39: 0.528 | AI39: 9.58 | AJ39: 8.04 | AK39: 31.8 | AL39: 2.14 | AM39: 1.55 | AN39: 37.2 | AO39: 0.9 | AP39: 35.6 | AQ39: 1.78 | AR39: 51.1 | AS39: 7.09 | AT39: 3.38
A40: 12 | B40: 4.63 | C40: 1.43 | D40: 0.575 | E40: 2.23 | F40: 3.15 | G40: 14.6 | H40: 0.499 | I40: 2.94 | J40: 0.708 | K40: 7.99 | L40: 0.998 | M40: 0.316 | N40: 2.06 | O40: 22.9 | P40: 206 | Q40: 76.4 | R40: 83.1 | S40: 0.849 | U40: 43.4 | V40: 3.23 | W40: 57.8 | X40: 1.19 | Y40: 1.57 | Z40: 13.1 | AA40: 18.5 | AB40: 1.08 | AC40: 0.463 | AD40: 0.408 | AE40: 0.629 | AF40: 4.77 | AG40: 3.38 | AH40: 0.286 | AI40: 4.76 | AJ40: 5.68 | AK40: 34.1 | AL40: 1.97 | AM40: 2.38 | AN40: 18.2 | AO40: 0.997 | AP40: 41.7 | AQ40: 1.18 | AR40: 37 | AS40: 1.9 | AT40: 0.822
A41: 13 | B41: 4.695 | C41: 0.5215 | E41: 4.13 | F41: 2.72 | G41: 45.25 | H41: 1.57 | I41: 4.5 | J41: 1.2275 | K41: 15.45 | L41: 1.225 | M41: 1.0205 | N41: 5.61 | O41: 24.25 | P41: 239 | Q41: 51.05 | R41: 66.8 | S41: 1.86 | T41: 0.446 | U41: 42.3 | V41: 3.835 | W41: 132.5 | X41: 1.195 | Y41: 0.986 | Z41: 12.5 | AA41: 13.85 | AB41: 1.052 | AC41: 0.53 | AD41: 0.454 | AE41: 0.7015 | AF41: 6.505 | AG41: 3.315 | AH41: 0.4025 | AI41: 5.68 | AJ41: 4.205 | AK41: 35.25 | AL41: 1.665 | AM41: 2.02 | AN41: 17.65 | AO41: 1.515 | AP41: 23.8 | AQ41: 1.395 | AR41: 35.75 | AS41: 5.375 | AT41: 3.88
A42: 14 | B42: 5.64 | C42: 0.558 | D42: 0.574 | E42: 3.59 | F42: 2.9 | G42: 35 | H42: 1.56 | I42: 3.83 | J42: 0.747 | K42: 12.7 | L42: 1.58 | M42: 0.921 | N42: 5.78 | O42: 29 | P42: 349 | Q42: 92.7 | R42: 83.7 | S42: 2.37 | T42: 0.314 | U42: 54.3 | V42: 5.6 | W42: 178 | X42: 1.53 | Y42: 2.36 | Z42: 21 | AA42: 24.9 | AB42: 1.17 | AC42: 0.626 | AD42: 0.531 | AE42: 0.58 | AF42: 4.75 | AG42: 2.83 | AH42: 0.525 | AI42: 8.11 | AJ42: 7.45 | AK42: 37.5 | AL42: 1.66 | AM42: 1.59 | AN42: 27.6 | AO42: 0.962 | AP42: 37.6 | AQ42: 2.4 | AR42: 49.2 | AS42: 11.2 | AT42: 5.32
A43: 15 | B43: 5.25 | C43: 1.53 | D43: 2.6 | E43: 9.35 | F43: 9.31 | G43: 68.5 | H43: 2.68 | I43: 8.31 | J43: 1.29 | K43: 23.7 | L43: 2.04 | M43: 1.35 | N43: 8.02 | O43: 30.6 | P43: 486 | Q43: 143 | R43: 98.9 | S43: 2.1 | T43: 0.53 | U43: 56.3 | V43: 6.78 | W43: 183 | X43: 3.36 | Y43: 3.07 | Z43: 33.2 | AA43: 38.7 | AB43: 2.57 | AC43: 1.67 | AD43: 1 | AE43: 1.46 | AF43: 14.7 | AG43: 5.89 | AH43: 0.579 | AI43: 8.93 | AJ43: 6.64 | AK43: 42.5 | AL43: 2.29 | AM43: 3.66 | AN43: 36.8 | AO43: 1.58 | AP43: 37.7 | AQ43: 1.69 | AR43: 47.4 | AT43: 1.27
A44: 16 | B44: 8.88 | C44: 0.55 | E44: 1.31 | F44: 3 | G44: 39.5 | H44: 1.19 | I44: 5.23 | J44: 1.36 | K44: 15.3 | L44: 1.2 | M44: 1.2 | N44: 4.36 | O44: 38.2 | P44: 513 | Q44: 130 | R44: 166 | S44: 1.72 | T44: 0.453 | U44: 66.2 | V44: 7.97 | W44: 127 | X44: 2.13 | Y44: 1.88 | Z44: 18.1 | AA44: 26.6 | AB44: 1.46 | AC44: 0.986 | AD44: 0.555 | AE44: 0.911 | AF44: 6.45 | AG44: 3.77 | AH44: 0.343 | AI44: 9.45 | AJ44: 9.75 | AK44: 48 | AL44: 3.47 | AM44: 3.52 | AN44: 38.6 | AO44: 1.51 | AP44: 71.1 | AQ44: 1.62 | AR44: 59.4 | AS44: 1.74
A45: 17 | B45: 13 | C45: 0.809 | D45: 0.908 | E45: 2.62 | F45: 4.55 | G45: 122 | H45: 3.19 | I45: 5.11 | J45: 1.37 | K45: 42.1 | L45: 1.19 | M45: 1.43 | N45: 15.5 | O45: 50.1 | P45: 666 | Q45: 146 | R45: 132 | S45: 3.98 | T45: 0.421 | U45: 80.7 | V45: 10.8 | W45: 420 | X45: 1.57 | Y45: 2.11 | Z45: 17.9 | AA45: 27.4 | AB45: 1.51 | AC45: 1.14 | AD45: 0.622 | AE45: 0.814 | AF45: 7.99 | AG45: 3.44 | AH45: 0.542 | AI45: 7.59 | AJ45: 10.4 | AK45: 55.8 | AL45: 5.3 | AM45: 4.43 | AN45: 28.9 | AO45: 2.43 | AP45: 85.4 | AQ45: 2.53 | AR45: 77.5 | AS45: 3.53 | AT45: 0.901
A46: 18 | B46: 11.5 | C46: 0.771 | D46: 2.62 | E46: 6.68 | F46: 5.55 | G46: 96.3 | H46: 3.9 | I46: 8.5 | J46: 1.42 | K46: 30.5 | L46: 2.25 | M46: 2.27 | N46: 15.6 | O46: 52.9 | P46: 778 | Q46: 161 | R46: 166 | S46: 5.76 | T46: 0.808 | U46: 82.9 | V46: 11.3 | W46: 454 | X46: 3.27 | Y46: 4.67 | Z46: 39.1 | AA46: 46.4 | AB46: 2.29 | AC46: 1.1 | AD46: 1.09 | AE46: 1.43 | AF46: 12.3 | AG46: 5.11 | AH46: 0.717 | AI46: 8.77 | AJ46: 11.1 | AK46: 74.6 | AL46: 4.5 | AM46: 4.14 | AN46: 47.6 | AO46: 2.18 | AP46: 70.5 | AQ46: 2.95 | AR46: 89.9 | AS46: 3.86 | AT46: 2.06
A47: 19 | B47: 6.03 | C47: 0.967 | D47: 0.915 | E47: 2.42 | F47: 3.97 | G47: 55.2 | H47: 2.97 | I47: 5.04 | J47: 1.05 | K47: 25.9 | L47: 2.32 | M47: 1.65 | N47: 6.15 | O47: 19.7 | P47: 294 | Q47: 96.6 | R47: 77.5 | S47: 2.14 | T47: 0.535 | U47: 59.7 | V47: 5.17 | W47: 117 | X47: 2.5 | Y47: 2.99 | Z47: 29.1 | AA47: 31.4 | AB47: 2.18 | AC47: 1.88 | AD47: 0.866 | AE47: 1.33 | AF47: 13 | AG47: 5.32 | AH47: 0.883 | AI47: 11.4 | AJ47: 8.17 | AK47: 45.3 | AL47: 4.8 | AM47: 3.23 | AN47: 26.6 | AO47: 2.14 | AP47: 52.9 | AQ47: 2.73 | AR47: 49.9 | AS47: 24 | AT47: 9.66
A48: 20 | B48: 8.26 | C48: 1.47 | D48: 1.64 | E48: 6.62 | F48: 7 | G48: 95.1 | H48: 4.04 | I48: 7.3 | J48: 2.57 | K48: 39.6 | L48: 1.97 | M48: 1.29 | N48: 12.5 | O48: 33.4 | P48: 356 | Q48: 85.8 | R48: 88.4 | S48: 3.35 | T48: 0.56 | U48: 51.5 | V48: 5.87 | W48: 171 | X48: 1.2 | Z48: 14.3 | AA48: 12.7 | AB48: 1.36 | AC48: 1.19 | AD48: 0.968 | AE48: 0.847 | AF48: 14.5 | AG48: 4.08 | AH48: 0.8 | AI48: 6.41 | AJ48: 4.25 | AK48: 27.6 | AL48: 1.17 | AM48: 3.01 | AN48: 12.7 | AO48: 1.65 | AP48: 22 | AQ48: 2.74 | AR48: 24.7 | AS48: 8.57 | AT48: 7.68
A49: Average | B49: =AVERAGE(B39:B48) -> 8.0785 | C49: =AVERAGE(C39:C48) -> 1.05465 | D49: =AVERAGE(D39:D48) -> 1.409 | E49: =AVERAGE(E39:E48) -> 4.529 | F49: =AVERAGE(F39:F48) -> 5.111 | G49: =AVERAGE(G39:G48) -> 73.145 | H49: =AVERAGE(H39:H48) -> 2.8129 | I49: =AVERAGE(I39:I48) -> 5.802 | J49: =AVERAGE(J39:J48) -> 1.26215 | K49: =AVERAGE(K39:K48) -> 25.824 | L49: =AVERAGE(L39:L48) -> 1.6493 | M49: =AVERAGE(M39:M48) -> 1.33275 | N49: =AVERAGE(N39:N48) -> 8.948 | O49: =AVERAGE(O39:O48) -> 33.405 | P49: =AVERAGE(P39:P48) -> 461.7 | Q49: =AVERAGE(Q39:Q48) -> 113.355 | R49: =AVERAGE(R39:R48) -> 106.23 | S49: =AVERAGE(S39:S48) -> 2.8939 | T49: =AVERAGE(T39:T48) -> 0.509 | U49: =AVERAGE(U39:U48) -> 59.55 | V49: 7.0165 | W49: 225.03 | X49: 2.0795 | Y49: 2.399555556 | Z49: 22.8 | AA49: 27.255 | AB49: 1.6492 | AC49: 1.0855 | AD49: 0.7316 | AE49: 0.95045 | AF49: 9.4835 | AG49: 4.0955 | AH49: 0.56055 | AI49: 8.068 | AJ49: =AVERAGE(AJ39:AJ48) -> 7.5685 | AK49: 43.245 | AL49: 2.8965 | AM49: 2.953 | AN49: 29.185 | AO49: 1.5864 | AP49: 47.83 | AQ49: 2.1015 | AR49: =AVERAGE(AR39:AR48) -> 52.185 | AS49: =AVERAGE(AS39:AS48) -> 7.473888889 | AT49: =AVERAGE(AT39:AT48) -> 3.885888889
A50: SD | B50: =STDEV(B39:B48) -> 3.355481461 | C50: =STDEV(C39:C48) -> 0.50080724 | D50: =STDEV(D39:D48) -> 0.8304165908 | E50: =STDEV(E39:E48) -> 2.588463508 | F50: =STDEV(F39:F48) -> 2.510672553 | G50: =STDEV(G39:G48) -> 44.82689204 | H50: =STDEV(H39:H48) -> 1.757252809 | I50: =STDEV(I39:I48) -> 1.917775332 | J50: =STDEV(J39:J48) -> 0.5294487726 | K50: =STDEV(K39:K48) -> 13.15485901 | L50: =STDEV(L39:L48) -> 0.4822429194 | M50: =STDEV(M39:M48) -> 0.5383711674 | N50: =STDEV(N39:N48) -> 4.974150514 | O50: =STDEV(O39:O48) -> 11.01111686 | P50: =STDEV(P39:P48) -> 206.5499939 | Q50: =STDEV(Q39:Q48) -> 37.45069685 | R50: =STDEV(R39:R48) -> 35.96825916 | S50: =STDEV(S39:S48) -> 1.541115357 | T50: =STDEV(T39:T48) -> 0.1351008882 | U50: =STDEV(U39:U48) -> 13.74338225 | V50: 2.819468084 | W50: 145.0517459 | X50: 0.865295229 | Y50: 1.071674754 | Z50: 9.326902546 | AA50: 10.60588018 | AB50: 0.5393924154 | AC50: 0.4640568093 | AD50: 0.2467181027 | AE50: 0.331515246 | AF50: 3.912262808 | AG50: 1.004612833 | AH50: 0.1933563851 | AI50: 2.004405149 | AJ50: =STDEV(AJ39:AJ48) -> 2.417530937 | AK50: 13.84221502 | AL50: 1.495367012 | AM50: 1.028310913 | AN50: 10.97846503 | AO50: 0.5368559087 | AP50: 21.42605112 | AQ50: 0.6366756108 | AR50: =STDEV(AR39:AR48) -> 19.46407018 | AS50: =STDEV(AS39:AS48) -> 6.94001611 | AT50: =STDEV(AT39:AT48) -> 3.132929797
A52: 21 | B52: 9.89 | C52: 0.401 | D52: 0.749 | E52: 2.78 | F52: 4.05 | G52: 17.6 | H52: 0.442 | I52: 5.12 | J52: 2.27 | K52: 10.6 | L52: 2.23 | M52: 1.15 | N52: 2.23 | O52: 39.9 | P52: 201 | Q52: 83.6 | R52: 105 | S52: 1.86 | U52: 71.4 | V52: 3.59 | W52: 31.3 | Z52: 2.47 | AA52: 4.67 | AB52: 0.647 | AD52: 0.443 | AE52: 0.659 | AF52: 1.63 | AG52: 2.44 | AH52: 0.587 | AI52: 9.18 | AJ52: 5.57 | AK52: 49.9 | AL52: 2.36 | AM52: 5.11 | AN52: 8.1 | AO52: 2.3 | AP52: 50 | AQ52: 2.23 | AR52: 50.7 | AS52: 2.13 | AT52: 1.14
A53: 22 | B53: 15.7 | C53: 1.97 | D53: 2.4 | E53: 6.01 | F53: 7.47 | G53: 69.9 | H53: 1.72 | I53: 7.38 | J53: 1.93 | K53: 22.4 | L53: 1.22 | M53: 1.97 | N53: 5.6 | O53: 50.4 | P53: 352 | Q53: 128 | R53: 138 | S53: 3.99 | T53: 0.361 | U53: 57.4 | V53: 9.82 | W53: 101 | X53: 0.571 | Y53: 0.902 | Z53: 5.69 | AA53: 10.4 | AB53: 1.37 | AC53: 1.29 | AD53: 0.67 | AE53: 0.682 | AF53: 6.44 | AG53: 3.68 | AH53: 0.447 | AI53: 11.6 | AJ53: 5.7 | AK53: 69.7 | AL53: 1.4 | AM53: 4.02 | AN53: 11.3 | AO53: 2.02 | AP53: 37.6 | AQ53: 1.77 | AR53: 38 | AT53: 16
A54: 23 | B54: 5.72 | C54: 0.741 | E54: 1.41 | F54: 4.2 | G54: 40.8 | H54: 0.924 | I54: 5.91 | J54: 1.37 | K54: 20.6 | L54: 1.99 | M54: 1.19 | N54: 4.88 | O54: 24.4 | P54: 133 | Q54: 53.7 | R54: 64.3 | S54: 2.47 | U54: 46.3 | V54: 2.23 | W54: 36.8 | Z54: 3.31 | AA54: 3.88 | AB54: 1.01 | AC54: 0.477 | AD54: 0.398 | AE54: 0.435 | AF54: 7.38 | AG54: 3.37 | AH54: 0.603 | AI54: 5.22 | AJ54: 4.26 | AK54: 22.8 | AL54: 1.27 | AM54: 4.13 | AN54: 6.24 | AO54: 2.02 | AP54: 31.3 | AQ54: 2.09 | AR54: 32.4 | AS54: 3.96 | AT54: 1.07
A55: 24 | B55: 5.86 | C55: 4.76 | D55: 2.7 | E55: 10.3 | F55: 10.7 | G55: 199 | H55: 3.99 | I55: 4.62 | J55: 1.91 | K55: 89.9 | L55: 3.02 | M55: 0.939 | N55: 11.8 | O55: 18.9 | P55: 403 | Q55: 82.1 | R55: 47 | S55: 3.64 | U55: 31.9 | V55: 3.84 | W55: 182 | X55: 0.634 | Y55: 1.74 | Z55: 5.28 | AA55: 9.18 | AB55: 1.7 | AC55: 1.36 | AD55: 0.686 | AE55: 0.914 | AF55: 9.16 | AG55: 4.75 | AH55: 0.353 | AI55: 5.27 | AJ55: 3.26 | AK55: 25.6 | AL55: 1.07 | AM55: 3.8 | AN55: 6.73 | AO55: 2.13 | AP55: 24.9 | AQ55: 2.17 | AR55: 19.3 | AS55: 1.68 | AT55: 0.59
A56: 25 | B56: 9.26 | C56: 1.48 | E56: 1.95 | F56: 3.82 | G56: 75.4 | H56: 2.18 | I56: 7.17 | J56: 2.11 | K56: 24.6 | L56: 2.25 | M56: 0.908 | N56: 6.14 | O56: 35.3 | P56: 322 | Q56: 69.9 | R56: 97.5 | S56: 3.37 | T56: 0.588 | U56: 60.9 | V56: 4.48 | W56: 110 | X56: 0.478 | Y56: 1.91 | Z56: 6.73 | AA56: 8.37 | AB56: 1.12 | AC56: 0.534 | AD56: 0.572 | AE56: 0.828 | AF56: 9.66 | AG56: 3.37 | AH56: 0.867 | AI56: 7.34 | AJ56: 4.45 | AK56: 52.3 | AL56: 1.51 | AM56: 3.1 | AN56: 10.2 | AO56: 2.19 | AP56: 30.6 | AQ56: 2.35 | AR56: 37.6 | AS56: 7.25 | AT56: 5.93
A57: 26 | B57: 7.66 | C57: 0.819 | D57: 0.992 | E57: 1.35 | F57: 2.4 | G57: 16.9 | I57: 5.05 | J57: 2.43 | K57: 9.36 | L57: 4.17 | M57: 0.557 | N57: 2.19 | O57: 44.7 | P57: 141 | Q57: 64.6 | R57: 113 | S57: 1.14 | T57: 0.431 | U57: 69.3 | V57: 3.15 | W57: 23.4 | X57: 0.498 | Y57: 1.64 | Z57: 6.28 | AA57: 8.38 | AB57: 0.971 | AC57: 1.19 | AD57: 0.399 | AE57: 0.605 | AF57: 4.6 | AG57: 2.94 | AH57: 0.439 | AI57: 9.66 | AJ57: 8.17 | AK57: 59.7 | AL57: 3.73 | AM57: 5.6 | AN57: 13.5 | AO57: 2.45 | AP57: 66.8 | AQ57: 3.06 | AR57: 63.8 | AS57: 5.65 | AT57: 3.45
A58: 27 | B58: 6.075 | C58: 0.5625 | E58: 0.749 | F58: 2.56 | G58: 14.2 | H58: 0.4305 | I58: 4.695 | J58: 2.32 | K58: 7.975 | L58: 2.185 | M58: 1.169 | N58: 1.965 | O58: 28 | P58: 114.5 | Q58: 45.5 | R58: 89.2 | S58: 1.595 | T58: 0.526 | U58: 59.3 | V58: 2.2 | W58: 25.75 | X58: 0 | Y58: 0.414 | Z58: 3.2 | AA58: 3.6 | AB58: 0.551 | AC58: 0.47 | AD58: 0.3975 | AE58: 0.621 | AF58: 2.45 | AG58: 1.94 | AH58: 0.704 | AI58: 7.825 | AJ58: 3.825 | AK58: 65 | AL58: 1.61 | AM58: 3.71 | AN58: 6.975 | AO58: 2.03 | AP58: 29.7 | AQ58: 2.045 | AR58: 38.2 | AS58: 5.025 | AT58: 3.1425
A59: 28 | B59: 7.4 | C59: 0.544 | D59: 0.777 | E59: 1.99 | F59: 3 | G59: 19.1 | H59: 0.912 | I59: 4.49 | J59: 1.63 | K59: 8.94 | L59: 1.24 | M59: 1.68 | N59: 2.74 | O59: 26.3 | P59: 147 | Q59: 66.2 | R59: 80.9 | S59: 2.78 | U59: 50.9 | V59: 5.27 | W59: 32.1 | Z59: 3.38 | AA59: 4.15 | AB59: 0.697 | AC59: 0.608 | AD59: 0.39 | AE59: 0.572 | AF59: 2.4 | AG59: 1.99 | AH59: 0.434 | AI59: 6.64 | AJ59: 4.77 | AK59: 36.2 | AL59: 2.43 | AM59: 5.28 | AN59: 8.76 | AO59: 3.13 | AP59: 55.8 | AQ59: 2.67 | AR59: 43.4 | AS59: 1.52
A60: 29 | B60: 5.73 | D60: 1.08 | E60: 1.88 | F60: 3.28 | G60: 25 | H60: 0.894 | I60: 5.27 | J60: 2.1 | K60: 10.5 | L60: 2.04 | M60: 1.57 | N60: 2.7 | O60: 19 | P60: 121 | Q60: 62.8 | R60: 65.8 | S60: 7.22 | T60: 0.432 | U60: 37 | V60: 3.36 | W60: 25.1 | Z60: 3.06 | AA60: 4.18 | AB60: 0.875 | AC60: 0.522 | AD60: 0.408 | AE60: 0.506 | AF60: 7.35 | AG60: 2.73 | AH60: 0.381 | AI60: 5.92 | AJ60: 3.68 | AK60: 34 | AL60: 1.94 | AM60: 4 | AN60: 6.83 | AO60: 2.05 | AP60: 29.9 | AQ60: 1.76 | AR60: 30.6 | AS60: 1.91 | AT60: 0.919
A61: 30 | B61: 7.59 | C61: 0.388 | E61: 1.1 | F61: 4.8 | G61: 48.2 | H61: 2.34 | I61: 7.2 | J61: 2.01 | K61: 22.8 | L61: 2.42 | M61: 4.04 | N61: 6.99 | O61: 37 | P61: 225 | Q61: 82.2 | R61: 101 | S61: 7.77 | T61: 0.391 | U61: 59.3 | V61: 8.47 | W61: 84.2 | X61: 0.453 | Z61: 6.71 | AA61: 8.56 | AB61: 1.55 | AC61: 0.778 | AD61: 0.761 | AE61: 1.02 | AF61: 12.8 | AG61: 3.63 | AH61: 0.587 | AI61: 6.06 | AJ61: 4.64 | AK61: 41.2 | AL61: 1.92 | AM61: 4.74 | AN61: 8.81 | AO61: 2.43 | AP61: 28.9 | AQ61: 2.7 | AR61: 26 | AS61: 12 | AT61: 7.33
A62: Average | B62: =AVERAGE(B52:B61) -> 8.0885 | C62: =AVERAGE(C52:C61) -> 1.296166667 | D62: =AVERAGE(D52:D61) -> 1.449666667 | E62: =AVERAGE(E52:E61) -> 2.9519 | F62: =AVERAGE(F52:F61) -> 4.628 | G62: =AVERAGE(G52:G61) -> 52.61 | H62: =AVERAGE(H52:H61) -> 1.536944444 | I62: =AVERAGE(I52:I61) -> 5.6905 | J62: =AVERAGE(J52:J61) -> 2.008 | K62: =AVERAGE(K52:K61) -> 22.7675 | L62: =AVERAGE(L52:L61) -> 2.2765 | M62: =AVERAGE(M52:M61) -> 1.5173 | N62: =AVERAGE(N52:N61) -> 4.7235 | O62: =AVERAGE(O52:O61) -> 32.39 | P62: =AVERAGE(P52:P61) -> 215.95 | Q62: =AVERAGE(Q52:Q61) -> 73.86 | R62: =AVERAGE(R52:R61) -> 90.17 | S62: =AVERAGE(S52:S61) -> 3.5835 | T62: =AVERAGE(T52:T61) -> 0.4548333333 | U62: =AVERAGE(U52:U61) -> 54.37 | V62: 4.641 | W62: 65.165 | X62: 0.439 | Y62: 1.3212 | Z62: 4.611 | AA62: 6.537 | AB62: 1.0491 | AC62: 0.8032222222 | AD62: 0.51245 | AE62: 0.6842 | AF62: 6.387 | AG62: 3.084 | AH62: 0.5402 | AI62: 7.4715 | AJ62: =AVERAGE(AJ52:AJ61) -> 4.8325 | AK62: 45.64 | AL62: 1.924 | AM62: 4.349 | AN62: 8.7445 | AO62: 2.275 | AP62: 38.55 | AQ62: 2.2845 | AR62: =AVERAGE(AR52:AR61) -> 38 | AS62: =AVERAGE(AS52:AS61) -> 4.569444444 | AT62: =AVERAGE(AT52:AT61) -> 4.396833333
A63: SD | B63: =STDEV(B52:B61) -> 3.048708333 | C63: =STDEV(C52:C61) -> 1.403210471 | D63: =STDEV(D52:D61) -> 0.866717178 | E63: =STDEV(E52:E61) -> 2.975454492 | F63: =STDEV(F52:F61) -> 2.578844703 | G63: =STDEV(G52:G61) -> 56.04437627 | H63: =STDEV(H52:H61) -> 1.157160653 | I63: =STDEV(I52:I61) -> 1.147984829 | J63: =STDEV(J52:J61) -> 0.3212060605 | K63: =STDEV(K52:K61) -> 24.50234289 | L63: =STDEV(L52:L61) -> 0.8497386853 | M63: =STDEV(M52:M61) -> 0.9769227253 | N63: =STDEV(N52:N61) -> 3.096367092 | O63: =STDEV(O52:O61) -> 10.76769345 | P63: =STDEV(P52:P61) -> 106.2540065 | Q63: =STDEV(Q52:Q61) -> 22.74643806 | R63: =STDEV(R52:R61) -> 26.69486218 | S63: =STDEV(S52:S61) -> 2.25451898 | T63: =STDEV(T52:T61) -> 0.08575177355 | U63: =STDEV(U52:U61) -> 12.89763544 | V63: 2.566590692 | W63: 52.97257178 | X63: 0.2251079741 | Y63: 0.6368776963 | Z63: 1.682646394 | AA63: 2.649566212 | AB63: 0.3879113444 | AC63: 0.3715379448 | AD63: 0.145363615 | AE63: 0.1836662432 | AF63: 3.631091204 | AG63: 0.8601576083 | AH63: 0.1607439648 | AI63: 2.105601062 | AJ63: =STDEV(AJ52:AJ61) -> 1.405009391 | AK63: 16.26674863 | AL63: 0.7752877602 | AM63: 0.7966241272 | AN63: 2.328827137 | AO63: 0.3424178734 | AP63: 14.04747901 | AQ63: 0.4187312185 | AR63: =STDEV(AR52:AR61) -> 12.63197002 | AS63: =STDEV(AS52:AS61) -> 3.442684676 | AT63: =STDEV(AT52:AT61) -> 4.953779832
A65: 31 | B65: 9.4 | C65: 10 | D65: 1.87 | E65: 16.8 | F65: 15.3 | G65: 344 | H65: 4.48 | I65: 7.58 | J65: 1.49 | K65: 89.8 | L65: 4.37 | M65: 1.05 | N65: 15.3 | O65: 42.8 | P65: 749 | Q65: 162 | R65: 102 | S65: 7.24 | U65: 68.8 | V65: 6.06 | W65: 367 | X65: 0.481 | Z65: 5.34 | AA65: 10.9 | AB65: 1.06 | AC65: 1.27 | AD65: 0.508 | AE65: 0.705 | AF65: 6.54 | AG65: 2.27 | AI65: 9.5 | AJ65: 5.04 | AK65: 61.9 | AL65: 1.74 | AM65: 4.62 | AN65: 10.9 | AO65: 2.1 | AP65: 53.3 | AQ65: 1.8 | AR65: 56.5 | AS65: 8.17 | AT65: 4.81
A66: 32 | B66: 12.7 | C66: 1.62 | D66: 0.849 | E66: 3.12 | F66: 5.43 | G66: 178 | H66: 2.23 | I66: 5.68 | J66: 1.37 | K66: 67.4 | L66: 2.48 | M66: 0.53 | N66: 11.4 | O66: 40.9 | P66: 637 | Q66: 120 | R66: 137 | S66: 4.5 | T66: 0.382 | U66: 119 | V66: 7.44 | W66: 311 | X66: 0.687 | Y66: 0.87 | Z66: 8.4 | AA66: 15.7 | AB66: 1.38 | AC66: 0.463 | AD66: 0.482 | AE66: 0.491 | AF66: 5.84 | AG66: 2.72 | AH66: 0.596 | AI66: 12.9 | AJ66: 7.83 | AK66: 41.5 | AL66: 2.1 | AM66: 3.63 | AN66: 20 | AO66: 1.53 | AP66: 73.9 | AQ66: 1.32 | AR66: 67.8 | AS66: 3.99 | AT66: 2.08
A67: 33 | B67: 7.3 | C67: 0.43 | E67: 1.45 | F67: 1.33 | G67: 31.8 | H67: 1.25 | I67: 2.46 | J67: 1.34 | K67: 8.78 | L67: 1.29 | M67: 0.35 | N67: 3.19 | O67: 25.4 | P67: 216 | Q67: 82 | R67: 87.3 | S67: 1.71 | T67: 0.477 | U67: 65.6 | V67: 2.35 | W67: 64.6 | X67: 0.574 | Z67: 4.62 | AA67: 8.99 | AB67: 0.688 | AE67: 0.646 | AF67: 4.31 | AG67: 2.44 | AH67: 0.554 | AI67: 10.9 | AJ67: 5.94 | AK67: 50.9 | AL67: 3.17 | AM67: 3.86 | AN67: 14.8 | AO67: 1.62 | AP67: 95 | AQ67: 2.69 | AR67: 91.4 | AS67: 4.27 | AT67: 1.62
A68: 34 | B68: 5.66 | C68: 0.282 | E68: 0.994 | F68: 1.46 | G68: 26.9 | H68: 0.635 | I68: 3.07 | J68: 1.06 | K68: 10.3 | L68: 1.38 | M68: 0.738 | N68: 3.24 | O68: 30.5 | P68: 187 | Q68: 52.7 | R68: 86.5 | S68: 1.37 | U68: 73.2 | V68: 2.83 | W68: 52.6 | X68: 0.341 | Z68: 4.13 | AA68: 8.82 | AB68: 0.749 | AC68: 0.586 | AD68: 0.383 | AE68: 0.428 | AF68: 4.49 | AG68: 2.06 | AH68: 0.563 | AI68: 8.14 | AJ68: 4.15 | AK68: 58.8 | AL68: 2.07 | AM68: 2.59 | AN68: 9.76 | AO68: 1.78 | AP68: 53 | AQ68: 1.55 | AR68: 44.9 | AS68: 2.18 | AT68: 0.999
A69: 35 | B69: 5.59 | C69: 0.912 | E69: 1.17 | F69: 2.62 | G69: 44 | H69: 1.23 | I69: 3.17 | J69: 0.916 | K69: 12.4 | L69: 0.911 | M69: 0.925 | N69: 2.63 | O69: 29.3 | P69: 308 | Q69: 75.5 | R69: 101 | S69: 1.62 | U69: 66.6 | V69: 3.38 | W69: 93.3 | X69: 0.727 | Y69: 1.5 | Z69: 6.73 | AA69: 12 | AB69: 0.907 | AC69: 0.815 | AD69: 0.416 | AE69: 0.462 | AF69: 4.17 | AG69: 2.37 | AH69: 0.484 | AI69: 6.88 | AJ69: 5.43 | AK69: 60.3 | AL69: 1.58 | AM69: 2.62 | AN69: 13 | AO69: 1.16 | AP69: 50.9 | AQ69: 1.49 | AR69: 58.4 | AS69: 3.62 | AT69: 0.943
A70: 36 | B70: 6.63 | C70: 1.39 | D70: 0.621 | E70: 2.37 | F70: 3.38 | G70: 29.5 | H70: 0.746 | I70: 4.44 | J70: 1.11 | K70: 13.8 | L70: 1.61 | M70: 0.776 | N70: 3.03 | O70: 36.4 | P70: 369 | Q70: 95.3 | R70: 110 | S70: 1.54 | T70: 0.313 | U70: 77.2 | V70: 3.66 | W70: 77.1 | X70: 0.504 | Z70: 4.41 | AA70: 11.2 | AB70: 0.997 | AC70: 0.303 | AD70: 0.364 | AE70: 0.485 | AF70: 5.02 | AG70: 2.63 | AH70: 0.395 | AI70: 6.23 | AJ70: 6.42 | AK70: 50.7 | AL70: 3.02 | AM70: 3.61 | AN70: 11.5 | AO70: 2.18 | AP70: 69 | AQ70: 1.83 | AR70: 59.6 | AS70: 1.09 | AT70: 0.551
A71: 37 | B71: 7.79 | C71: 0.571 | E71: 0.815 | F71: 4.23 | G71: 24.3 | H71: 1.02 | I71: 4.84 | J71: 1.27 | K71: 11 | L71: 1.41 | M71: 1.43 | N71: 1.57 | O71: 47.2 | P71: 225 | Q71: 77.1 | R71: 159 | S71: 5.79 | U71: 159 | V71: 7.76 | W71: 55.7 | X71: 0.767 | Y71: 1.21 | Z71: 10.1 | AA71: 16.6 | AB71: 1.34 | AC71: 1.11 | AD71: 0.971 | AE71: 1.25 | AF71: 3.6 | AG71: 2.85 | AH71: 1.1 | AI71: 14.6 | AJ71: 5.03 | AK71: 115 | AL71: 1.37 | AM71: 3.83 | AN71: 11.5 | AO71: 2.3 | AP71: 71 | AQ71: 2 | AR71: 73.9 | AS71: 3.63 | AT71: 1.74
A72: 38 | B72: 10.3 | C72: 0.413 | E72: 0.805 | F72: 2.44 | G72: 28.8 | H72: 0.7 | I72: 4.2 | J72: 0.951 | K72: 10 | L72: 0.603 | M72: 1.01 | N72: 2.35 | O72: 24.8 | P72: 192 | Q72: 61.2 | R72: 85.4 | S72: 3.26 | U72: 48.6 | V72: 7.61 | W72: 60.3 | X72: 0.515 | Y72: 1.86 | Z72: 5.86 | AA72: 10.1 | AB72: 1.01 | AC72: 0.996 | AD72: 0.495 | AE72: 0.526 | AF72: 4.41 | AG72: 2.63 | AH72: 0.324 | AI72: 30 | AJ72: 3.09 | AK72: 108 | AL72: 1.45 | AM72: 2.25 | AN72: 8.28 | AO72: 1.17 | AP72: 27.6 | AQ72: 1.21 | AR72: 26.4 | AT72: 51.3
A73: 39 | B73: 8.81 | C73: 0.584 | D73: 1.14 | E73: 2.2 | F73: 4.17 | G73: 28.5 | H73: 0.765 | I73: 7.7 | J73: 2.23 | K73: 13.3 | L73: 2.28 | M73: 1.64 | N73: 2.68 | O73: 39.6 | P73: 445 | Q73: 123 | R73: 130 | S73: 1.96 | T73: 0.357 | U73: 54.3 | V73: 7.11 | W73: 55.5 | X73: 0.389 | Z73: 3.36 | AA73: 7.1 | AB73: 0.932 | AC73: 0.476 | AD73: 0.41 | AE73: 0.517 | AF73: 3.56 | AG73: 2.57 | AH73: 0.531 | AI73: 6.49 | AJ73: 4.13 | AK73: 35.8 | AL73: 1.06 | AM73: 2.58 | AN73: 8.97 | AO73: 1.37 | AP73: 21.8 | AQ73: 1.25 | AR73: 21.5 | AS73: 1.72 | AT73: 0.946
A74: 40 | B74: 10.935 | C74: 1.1835 | D74: 1.3245 | E74: 3.535 | F74: 6.525 | G74: 106.75 | H74: 2.735 | I74: 12.345 | J74: 4.26 | K74: 35.6 | L74: 4.83 | M74: 2.27 | N74: 9.45 | O74: 55.2 | P74: 492 | Q74: 146.15 | R74: 161.5 | S74: 4.29 | T74: 0.7185 | U74: 85.4 | V74: 9.07 | W74: 164.15 | X74: 0.764 | Y74: 2.1435 | Z74: 6.365 | AA74: 13.095 | AB74: 1.815 | AC74: 1.335 | AD74: 0.799 | AE74: 0.9295 | AF74: 9.46 | AG74: 3.455 | AH74: 0.512 | AI74: 9.06 | AJ74: 6.05 | AK74: 52 | AL74: 2.345 | AM74: 5.44 | AN74: 18.4 | AO74: 2.81 | AP74: 44.4 | AQ74: 3.355 | AR74: 44.8 | AS74: 2.765 | AT74: 0.99
A75: Average | B75: =AVERAGE(B65:B74) -> 8.5115 | C75: =AVERAGE(C65:C74) -> 1.73855 | D75: =AVERAGE(D65:D74) -> 1.1609 | E75: =AVERAGE(E65:E74) -> 3.3259 | F75: =AVERAGE(F65:F74) -> 4.6885 | G75: =AVERAGE(G65:G74) -> 84.255 | H75: =AVERAGE(H65:H74) -> 1.5791 | I75: =AVERAGE(I65:I74) -> 5.5485 | J75: =AVERAGE(J65:J74) -> 1.5997 | K75: =AVERAGE(K65:K74) -> 27.238 | L75: =AVERAGE(L65:L74) -> 2.1164 | M75: =AVERAGE(M65:M74) -> 1.0719 | N75: =AVERAGE(N65:N74) -> 5.484 | O75: =AVERAGE(O65:O74) -> 37.21 | P75: =AVERAGE(P65:P74) -> 382 | Q75: =AVERAGE(Q65:Q74) -> 99.495 | R75: =AVERAGE(R65:R74) -> 115.97 | S75: =AVERAGE(S65:S74) -> 3.328 | T75: =AVERAGE(T65:T74) -> 0.4495 | U75: =AVERAGE(U65:U74) -> 81.77 | V75: 5.727 | W75: 130.125 | X75: 0.5749 | Y75: 1.5167 | Z75: 5.9315 | AA75: 11.4505 | AB75: 1.0878 | AC75: 0.8171111111 | AD75: 0.5364444444 | AE75: 0.64395 | AF75: 5.14 | AG75: 2.5995 | AH75: 0.5621111111 | AI75: 11.47 | AJ75: =AVERAGE(AJ65:AJ74) -> 5.311 | AK75: 63.49 | AL75: 1.9905 | AM75: 3.503 | AN75: 12.711 | AO75: 1.802 | AP75: 55.99 | AQ75: 1.8495 | AR75: =AVERAGE(AR65:AR74) -> 54.52 | AS75: =AVERAGE(AS65:AS74) -> 3.492777778 | AT75: =AVERAGE(AT65:AT74) -> 6.5979
A76: SD | B76: =STDEV(B65:B74) -> 2.349673795 | C76: =STDEV(C65:C74) -> 2.937600026 | D76: =STDEV(D65:D74) -> 0.4792698092 | E76: =STDEV(E65:E74) -> 4.831414595 | F76: =STDEV(F65:F74) -> 4.079146187 | G76: =STDEV(G65:G74) -> 103.9229374 | H76: =STDEV(H65:H74) -> 1.235526109 | I76: =STDEV(I65:I74) -> 2.97870036 | J76: =STDEV(J65:J74) -> 1.007458634 | K76: =STDEV(K65:K74) -> 28.63630555 | L76: =STDEV(L65:L74) -> 1.426936906 | M76: =STDEV(M65:M74) -> 0.5701996629 | N76: =STDEV(N65:N74) -> 4.767380366 | O76: =STDEV(O65:O74) -> 9.864352206 | P76: =STDEV(P65:P74) -> 196.5700328 | Q76: =STDEV(Q65:Q74) -> 36.68749749 | R76: =STDEV(R65:R74) -> 29.14244899 | S76: =STDEV(S65:S74) -> 2.057672903 | T76: =STDEV(T65:T74) -> 0.1619120131 | U76: =STDEV(U65:U74) -> 33.28783728 | V76: 2.435615596 | W76: 115.6806506 | X76: 0.1545829155 | Y76: 0.5057909153 | Z76: 2.069444437 | AA76: 3.012419155 | AB76: 0.3373859643 | AC76: 0.3792395168 | AD76: 0.2082793263 | AE76: 0.2605537319 | AF76: 1.782008854 | AG76: 0.3785384906 | AH76: 0.2193008461 | AI76: 7.068172795 | AJ76: =STDEV(AJ65:AJ74) -> 1.348212397 | AK76: 26.61146161 | AL76: 0.6967641479 | AM76: 1.01635569 | AN76: 3.922749744 | AO76: 0.5376450709 | AP76: 22.0818402 | AQ76: 0.688486464 | AR76: =STDEV(AR65:AR74) -> 21.1474611 | AS76: =STDEV(AS65:AS74) -> 2.059485845 | AT76: =STDEV(AT65:AT74) -> 15.75347412
A78: p-values Two-Way ANOVA with Tukey's HSD for Multiple Comparisons
A79: LFD ACSL4floxed vs. Ad-KO | B79: 0.0505 | C79: 0.9782 | D79: 0.4527 | E79: 0.6795 | F79: 0.9357 | G79: 0.9288 | H79: 0.9999 | I79: 0.668 | J79: 0.9044 | K79: 0.9974 | L79: 0.9864 | M79: 0.9909 | N79: 0.9983 | O79: 0.1024 | P79: 0.9707 | Q79: 0.9994 | R79: 0.3078 | S79: 0.8663 | T79: 0.986 | U79: 0.1313 | V79: 0.6194 | W79: 0.9318 | X79: 0.6096 | Y79: 0.9991 | Z79: 0.1908 | AA79: 0.7925 | AB79: 0.5414 | AC79: 0.8236 | AD79: 0.6445 | AE79: 0.0797 | AF79: 1 | AG79: 0.1081 | AH79: 0.9981 | AI79: 0.0753 | AJ79: 0.9935 | AK79: 0.0328 | AL79: 0.9587 | AM79: 0.8258 | AN79: 0.8795 | AO79: 0.8813 | AP79: 0.9343 | AQ79: 0.763 | AR79: 0.9405 | AS79: 0.9957 | AT79: 0.9938
A80: ACSL4floxed LFD vs. HFD | B80: 0.0514 | C80: 0.9996 | D80: 0.4516 | E80: 1 | F80: 0.9971 | G80: 0.5983 | H80: 0.2922 | I80: 0.5909 | J80: 0.2483 | K80: 0.9563 | L80: 0.6816 | M80: 0.9932 | N80: 0.1501 | O80: 0.0717 | P80: 0.0084 | Q80: 0.0425 | R80: 0.0482 | S80: 0.9999 | T80: 0.6987 | U80: 0.0541 | V80: 0.015 | W80: 0.023 | X80: <.0001 | Y80: 0.0899 | Z80: <.0001 | AA80: <.0001 | AB80: 0.0023 | AC80: 0.1702 | AD80: 0.0151 | AE80: 0.0007 | AF80: 0.1324 | AG80: 0.002 | AH80: 0.9999 | AI80: 0.0513 | AJ80: 0.0053 | AK80: 0.0554 | AL80: 0.3724 | AM80: 0.0972 | AN80: <.0001 | AO80: 0.106 | AP80: 0.9413 | AQ80: 0.3457 | AR80: 0.5924 | AS80: 0.9882 | AT80: 0.9988
A81: HFD ACSL4floxed vs. Ad-KO | B81: 0.9904 | C81: 0.9477 | D81: 0.8974 | E81: 0.9939 | F81: 1 | G81: 0.7545 | H81: 0.9999 | I81: 0.9985 | J81: 0.5022 | K81: 0.9668 | L81: 0.9822 | M81: 0.5337 | N81: 0.9836 | O81: 0.8565 | P81: 0.2053 | Q81: 0.2579 | R81: 0.4355 | S81: 0.9897 | T81: 0.9999 | U81: 0.142 | V81: 0.8049 | W81: 0.7597 | X81: 0.9725 | Y81: 0.9824 | Z81: 0.9646 | AA81: 0.3739 | AB81: 0.9984 | AC81: 0.9999 | AD81: 0.9964 | AE81: 0.9925 | AF81: 0.8104 | AG81: 0.8719 | AH81: 0.9947 | AI81: 0.6581 | AJ81: 0.9373 | AK81: 0.3522 | AL81: 0.9989 | AM81: 0.2186 | AN81: 0.6302 | AO81: 0.1663 | AP81: 0.1498 | AQ81: 0.3467 | AR81: 0.1621 | AS81: 0.9185 | AT81: 0.9655
